{"text_format":"1","workbook":"xlsx","n_sheets":9,"sheets":["0. Instructions","1. Description generale","2. Bilan annees precedentes","3. Budget","4. Equipements","5. Criteres de selection","6. Forfaits","7. Fiche SLIME CLER","Listes"],"not_rendered":{"charts":0,"images":18,"macros":1,"external_links":0,"defined_names":41,"comments":1,"pivot_tables":0},"unopened":[],"bounds":{"document_bytes":16777216,"sheet_cells":100000,"rows_first":2000,"rows_last":500,"rows_between":2000,"halvings":0,"cell_chars":16384,"cell_head_chars":4096},"cells_cut":0,"cells_raw":0,"read":"whole","date_system":"1904"}

{"sheet":"0. Instructions","index":0,"n_rows":29,"n_cols":1,"rows_kept":29,"cut":false,"hidden":false,"merged":[[15,0,15,3],[0,0,3,3],[5,0,5,3],[4,0,4,3],[6,0,6,3],[8,0,8,3],[9,0,9,3],[7,0,7,3],[10,0,10,3],[11,0,11,3],[12,0,12,3],[13,0,13,3],[14,0,14,3],[26,0,26,3],[27,0,27,3],[28,0,28,3],[16,0,16,3],[22,0,22,3],[23,0,23,3],[24,0,24,3],[21,0,21,3],[25,0,25,3],[17,0,17,3],[18,0,18,3],[19,0,19,3],[20,0,20,3]]}
["Note pour remplissage du dossier de candidature"]
[]
[]
[]
["Informations générales"]
["Se référer au site internet du Slime (www.lesslime.fr) pour :\nle descriptif du dispositif, la foire aux questions, les vidéos présentant les visites à domicile, le dossier de candidature et les actualités du dispositif"]
["Envoyer une version par email et une version papier accompagnée d'un courrier (après validation du dossier par email) à signature de l'élu en charge du dispositif et entête de la collectivité pilote"]
["La collectivité ne doit remplir que les cases jaunes et rouges foncées (menus déroulants). Les cases rouges clair se remplissent automatiquement"]
["NB : Pour aller à la ligne dans une même cellule, taper [Alt]+[Entrée] sur PC et [ctrlt]+[cmd]+[entrée] sur mac "]
["Pour l’onglet 1. Description générale"]
["La \"Présentation générale de l’action\" doit être synthétique (3000 caractères maximum). Il est possible d’ajouter une ou deux pages dans un document séparé et/ou un schéma explicatif de votre dispositif."]
["Pour les cellules de description (lignes 46 à 103) se reporter à l’onglet 5. Critères de sélection"]
["Pour l’onglet 2. Bilan années précédentes"]
["Cet onglet n'est à remplir que par les collectivités demandant un renouvellement de leur Slime."]
["Pour l’onglet 3. Budget"]
["La collectivité doit contacter le CLER si elle souhaite ajouter des lignes au budget."]
["La collectivité doit sélectionner via les menus déroulants le type de dépense en question. La collectivité peut demander au CLER d'en ajouter, ou à défaut, de laisser la case vide et détailler la dépense dans la case à côté \"détailler dépense si besoin\"."]
["La catégorie \"1. Coordination du dispositif et animation territoriale\" fait référence aux dépenses en lien avec l'animation du réseau Slime, telles quelles:\n\n- gestion globale et administrative du projet;\n- mobilisation, sensibilisation et formation des donneurs d'alerte et des acteurs relais;\n- coordination d'un comité d'orientation;\n- communication;\n- animation, organisation d'interventions, de réunions;\n- élargissement de son réseau de partenaires;\n- actions pour améliorer l'efficacité de son Slime.\n\nCette catégorie est co-financée par un forfait dédié indépendant du nombre de visites réalisées. La collectivité ayant choisi ce forfait doit l'utiliser de façon indépendante des actions de coordination et d'animation en lien avec la réalisation des visites. \nRappel: ce forfait est plafonné à 70% de 50.000€ des dépenses éligibles en première année et à 70% de 25.000€ des dépenses éligibles les années suivantes."]
["La catégorie \"3. Evaluation\" fait référence aux dépenses en lien avec l'évaluation locale du dispositif, telles quelles:\n\n- organisation et coordination de l'évaluation;\n- réalisation de l'évaluation;\n- communication autour de l'évaluation.\n\n Cette catégorie est co-financée par un forfait dédié indépendant du nombre de visites réalisées. La collectivité ayant choisi ce forfait doit l'utiliser de façon indépendante des actions de coordination et d'animation en lien avec la réalisation des visites. \nRappel: ce forfait est plafonné à 70% de 20.000€  des dépenses éligibles."]
["La catégorie \"2. Diagnostics socio-techniques et soutien renforcé\" fait référence aux dépenses en lien avec les visites à domicile, telles quelles: \n\n- coordination;\n- organisation et réalisation des diagnostics sociotechniques;\n- installation des petits équipements;\n- orientation et accompagnement du ménage après la visite. \n\nLe co-financement dépend du nombre de visites réalisées et ne peut pas être supérieur à 70% des dépenses éligibles en lien avec les visites en 2022 et 2023, 60% en 2024 et 50% en 2025. Par ailleurs, le co-financement ne peut pas dépasser le montant généré par le nombre de visites réalisées multiplié par le forfait par visite."]
["La catégorie \"4. Formations et accompagnement méthodologique\" fait référence aux dépenses en lien avec les formations proposées et éligibles. Ce co-financement s'élève à 75% des dépenses et n'est pas plafonné. Le co-financement de l'action \"Accompagnement méthodologique Ambassadeur Slime\" pour les collectivités éligibles et l'ayant choisi comme option est, quant à lui, plafonné à 2500€."]
["Dans \"Accompagnement méthodologique Ambassadeur Slime\" (A62, par exemple): cet accompagnement n'est valable qu'en phase de candidature et seule la prestation d'un ambassadeur Slime habilité par le CLER est prise en charge."]
["Dans \"Recettes prévisionnelles du dispositif\": remplacer « collectivité pilote » (cellule A81) par le nom de la collectivité et « partenaire financier » (cellules A82 à A86) par leur nom."]
["Pour l’onglet 4. Équipements"]
["La collectivité doit transposer les coûts des équipements dans l'onglet 3.Budget section \"Diagnostics socio-techniques et soutien renforcé\"."]
["Pour l’onglet 5. Critères de sélection"]
["Le remplissage des colonnes B et C fait office d'engagement de la collectivité vis-à-vis des critères de sélection."]
["Contacts"]
["slime@cler.org"]

{"sheet":"1. Description generale","index":1,"n_rows":125,"n_cols":9,"rows_kept":125,"cut":false,"hidden":false,"merged":[[124,0,124,2],[123,0,123,3],[123,6,124,6],[122,0,122,6],[113,8,114,8],[112,0,112,8],[107,8,108,8],[110,8,111,8],[106,0,106,8],[108,0,108,2],[111,0,111,2],[6,3,6,4],[8,3,8,4],[9,3,9,4],[91,3,93,3],[17,3,18,3],[17,4,18,4],[53,3,60,3],[29,1,29,3],[22,0,22,2],[22,3,22,4],[20,0,20,1],[20,2,20,3],[73,3,74,3],[75,3,76,3],[72,0,82,2],[0,1,3,4],[115,0,117,4],[41,1,41,4],[24,1,24,3],[24,4,24,7],[29,4,29,7],[114,0,114,2],[83,0,83,4],[7,3,7,4],[4,3,4,4],[5,3,5,4],[50,0,50,4],[51,0,51,4],[61,0,61,4],[42,0,43,0],[16,0,16,1],[94,3,94,4],[84,0,87,2],[84,3,85,3],[103,0,105,8],[109,0,109,8],[121,0,121,2],[45,0,45,4],[71,0,71,4],[46,0,49,2],[46,3,48,3],[88,0,88,4],[52,0,52,4],[62,0,70,2],[119,0,119,2],[118,0,118,4],[120,0,120,4],[95,3,101,3],[92,4,93,4],[89,0,102,2],[53,0,60,2],[77,3,78,3]]}
[null,"Description générale du dispositif\n\nMerci de ne compléter que les cases jaunes et rouges foncées (menus déroulants)\nLes cases rouges clair se remplissent automatiquement"]
[]
[]
[]
["Collectivité pilotant le Slime (cf critère de sélection 1)","Nom local du dispositif (par ex. Slime CLER…)","Territoire d'action du dispositif Slime","Département"]
[]
["Responsable du dispositif (NOM Prénom)","Adresse email","Numéro de téléphone","Service"]
[]
["Date de début du dispositif (jj/mm/aaaa)","Date de fin du dispositif (jj/mm/aaaa)","Durée de l'action (en mois)","Adresse"]
[null,null,{"$f":"ROUND((B10-A10)*12/365,0)","v":0}]
[]
["Budget total du dispositif local Slime ","Budget de la collectivité éligible au co-financement via le Slime","Participation directe des autres partenaires","Co-financement Slime possible (total)"]
[{"$f":"'3. Budget'!F84+'3. Budget'!M84+'3. Budget'!T84+'3. Budget'!AA84","v":0},{"$f":"'3. Budget'!F74+'3. Budget'!M74+'3. Budget'!T74+'3. Budget'!AA74","v":0},{"$f":"A13-B13","v":0},{"$f":"'6. Forfaits'!I50","v":{"$error":"#VALUE!"}}]
[]
["Nombre de ménages sur le territoire d'action",null,null,"Coût par ménage",{"$f":"A13/D40","v":{"$error":"#DIV/0!"}}]
["Densité de population","Supérieure à 50hab/km2",null,"Forfait par ménage",{"$f":"(('6. Forfaits'!C16+IF(A32=\"-\",0,'6. Forfaits'!C17)+IF(A33=\"-\",0,'6. Forfaits'!C18)+IF(A34=\"-\",0,'6. Forfaits'!C19))/(IF(A32=\"-\",1,IF(A33=\"-\",2,IF(A34=\"-\",3,4)))))","v":300}]
[{"$f":"IF(B16=\"Inférieure à 50hab/km2\",\"faible densité\",IF(B15<300000,\"petit territoire\",\"grand territoire\"))","v":"petit territoire"}]
["Type de territoire","Départemental",null,"Candidature préparée avec le soutien méthodologique d'un \"ambassadeur du Slime\" ?","NON"]
["Age du dispositif ","1ère année"]
[]
["La collectivité souhaite demander une avance (en % du co-financement Slime total)",null,"OUI - 15%",null,{"$f":"D13*VALUE(MID(C21,7,2))/100","v":{"$error":"#VALUE!"}}]
[]
["1ère année et ambassadeur",null,null,{"$f":"IF(B19=\"1ère année\",IF(E18=\"OUI\",\"OUI\",\"NON\"),\"NON\")","v":"NON"}]
[null,"si première année","si deuxième année","si troisième année ou plus","si première année",null,"si deuxième année","si troisième année ou plus"]
[null,"pourcentage",null,null,"nombre minimal"]
["Année N",{"$f":"IF(A17=\"faible densité\",1,IF(A17=\"petit territoire\",1,IF(A17=\"grand territoire\",\"-\",\"\")))","v":1},{"$f":"IF(A17=\"faible densité\",1,IF(A17=\"petit territoire\",1.5,IF(A17=\"grand territoire\",\"-\",\"\")))","v":1.5},{"$f":"IF(A17=\"faible densité\",1,IF(A17=\"petit territoire\",2,IF(A17=\"grand territoire\",\"-\",\"\")))","v":2},{"$f":"IF(B26=\"-\",300,B15*(B26/1000))","v":0},null,{"$f":"IF(C26=\"-\",450,B15*(C26/1000))","v":0},{"$f":"IF(D26=\"-\",450,(IF((B15*(D26/1000))>450,450,B15*(D26/1000))))","v":0}]
["Année N+1",{"$f":"IF(A17=\"faible densité\",1,IF(A17=\"petit territoire\",1.5,IF(A17=\"grand territoire\",\"-\",\"\")))","v":1.5},{"$f":"IF(A17=\"faible densité\",1,IF(A17=\"petit territoire\",2,IF(A17=\"grand territoire\",\"-\",\"\")))","v":2},{"$f":"IF(A17=\"faible densité\",1,IF(A17=\"petit territoire\",2,IF(A17=\"grand territoire\",\"-\",\"\")))","v":2},{"$f":"IF(B27=\"-\",450,B15*(B27/1000))","v":0},null,{"$f":"IF(C27=\"-\",450,(IF((B15*(C27/1000))>450,450,B15*(C27/1000))))","v":0},{"$f":"IF(D27=\"-\",450,(IF((B15*(D27/1000))>450,450,B15*(D27/1000))))","v":0}]
["Année N+2",{"$f":"IF(A17=\"faible densité\",1,IF(A17=\"petit territoire\",2,IF(A17=\"grand territoire\",\"-\",\"\")))","v":2},{"$f":"IF(A17=\"faible densité\",1,IF(A17=\"petit territoire\",2,IF(A17=\"grand territoire\",\"-\",\"\")))","v":2},{"$f":"IF(A17=\"faible densité\",1,IF(A17=\"petit territoire\",2,IF(A17=\"grand territoire\",\"-\",\"\")))","v":2},{"$f":"IF(B28=\"-\",450,(IF((B15*(B28/1000))>450,450,B15*(B28/1000))))","v":0},null,{"$f":"IF(C28=\"-\",450,(IF((B15*(C28/1000))>450,450,B15*(C28/1000))))","v":0},{"$f":"IF(D28=\"-\",450,(IF((B15*(D28/1000))>450,450,B15*(D28/1000))))","v":0}]
["Année N+3",{"$f":"IF(A17=\"faible densité\",1,IF(A17=\"petit territoire\",2,IF(A17=\"grand territoire\",\"-\",\"\")))","v":2},{"$f":"IF(A17=\"faible densité\",1,IF(A17=\"petit territoire\",2,IF(A17=\"grand territoire\",\"-\",\"\")))","v":2},{"$f":"IF(A17=\"faible densité\",1,IF(A17=\"petit territoire\",2,IF(A17=\"grand territoire\",\"-\",\"\")))","v":2},{"$f":"IF(B29=\"-\",450,(IF((B15*(B29/1000))>450,450,B15*(B29/1000))))","v":0},null,{"$f":"IF(C29=\"-\",450,(IF((B15*(C29/1000))>450,450,B15*(C29/1000))))","v":0},{"$f":"IF(D29=\"-\",450,(IF((B15*(D29/1000))>450,450,B15*(D29/1000))))","v":0}]
[null,"pourcentage",null,null,"nombre minimal",null,null,null,"dégressivité"]
[{"$f":"IF(A36>YEAR(B10),\"-\",A36)","v":1904},{"$f":"B26","v":1},1.5,2,0,null,0,0,{"$f":"IF(A31=2022,$B$44,IF(A31=2023,$C$44,IF(A31=2024,$D$44,IF(A31=2025,$E$44,\"-\"))))","v":"-"}]
[{"$f":"IF(A37>YEAR(B10),\"-\",A37)","v":"-"},{"$f":"IF(A32<>\"-\",B27,\"\")","v":""},{"$f":"IF(A32<>\"-\",C27,\"\")","v":""},{"$f":"IF(A32<>\"-\",D27,\"\")","v":""},{"$f":"IF(A32<>\"-\",E27,\"\")","v":""},null,{"$f":"IF(A32<>\"-\",G27,\"\")","v":""},{"$f":"IF(A32<>\"-\",H27,\"\")","v":""},{"$f":"IF(A32=2022,$B$44,IF(A32=2023,$C$44,IF(A32=2024,$D$44,IF(A32=2025,$E$44,\"-\"))))","v":"-"}]
[{"$f":"IF(A38>YEAR(B10),\"-\",A38)","v":"-"},{"$f":"IF(A33<>\"-\",B28,\"\")","v":""},{"$f":"IF(A33<>\"-\",C28,\"\")","v":""},{"$f":"IF(A33<>\"-\",D28,\"\")","v":""},{"$f":"IF(A33<>\"-\",E28,\"\")","v":""},null,{"$f":"IF(A33<>\"-\",G28,\"\")","v":""},{"$f":"IF(A33<>\"-\",H28,\"\")","v":""},{"$f":"IF(A33=2022,$B$44,IF(A33=2023,$C$44,IF(A33=2024,$D$44,IF(A33=2025,$E$44,\"-\"))))","v":"-"}]
[{"$f":"IF(A39>YEAR(B10),\"-\",A39)","v":"-"},{"$f":"IF(A34<>\"-\",B29,\"\")","v":""},{"$f":"IF(A34<>\"-\",C29,\"\")","v":""},{"$f":"IF(A34<>\"-\",D29,\"\")","v":""},{"$f":"IF(A34<>\"-\",E29,\"\")","v":""},null,{"$f":"IF(A34<>\"-\",G29,\"\")","v":""},{"$f":"IF(A34<>\"-\",H29,\"\")","v":""},{"$f":"IF(A34=2022,$B$44,IF(A34=2023,$C$44,IF(A34=2024,$D$44,IF(A34=2025,$E$44,\"-\"))))","v":"-"}]
[null,"Nombre minimal de ménages (en ‰)","Nombre minimal de ménages","Nombre de ménages qui recevront une visite","% du nombre minimal de ménage","Co-financement Slime (par an)"]
[{"$f":"YEAR(A10)","v":1904},{"$f":"IF(B19=\"1ère année\",B31,IF(B19=\"2ème année\",C31,IF(B19=\"3ème année ou plus\",D31,\"\")))","v":1},{"$f":"IF(B19=\"1ère année\",E31,IF(B19=\"2ème année\",G31,IF(B19=\"3ème année ou plus\",H31,\"\")))","v":0},null,{"$f":"D36/C36","v":{"$error":"#DIV/0!"}},{"$f":"'6. Forfaits'!I46","v":{"$error":"#VALUE!"}}]
[{"$f":"YEAR(A10)+1","v":1905},{"$f":"IF(B19=\"1ère année\",B32,IF(B19=\"2ème année\",C32,IF(B19=\"3ème année ou plus\",D32,\"\")))","v":""},{"$f":"IF(B19=\"1ère année\",E32,IF(B19=\"2ème année\",G32,IF(B19=\"3ème année ou plus\",H32,\"\")))","v":""},null,{"$f":"D37/C37","v":{"$error":"#VALUE!"}},{"$f":"'6. Forfaits'!I47","v":0}]
[{"$f":"YEAR(A10)+2","v":1906},{"$f":"IF(B19=\"1ère année\",B33,IF(B19=\"2ème année\",C33,IF(B19=\"3ème année ou plus\",D33,\"\")))","v":""},{"$f":"IF(B19=\"1ère année\",E33,IF(B19=\"2ème année\",G33,IF(B19=\"3ème année ou plus\",H33,\"\")))","v":""},null,{"$f":"D38/C38","v":{"$error":"#VALUE!"}},{"$f":"'6. Forfaits'!I48","v":0}]
[{"$f":"YEAR(A10)+3","v":1907},{"$f":"IF(B19=\"1ère année\",B34,IF(B19=\"2ème année\",C34,IF(B19=\"3ème année ou plus\",D34,\"\")))","v":""},{"$f":"IF(B19=\"1ère année\",E34,IF(B19=\"2ème année\",G34,IF(B19=\"3ème année ou plus\",H34,\"\")))","v":""},null,{"$f":"D39/C39","v":{"$error":"#VALUE!"}},{"$f":"'6. Forfaits'!I49","v":0}]
["Sur la période",null,{"$f":"SUM(C36:C39)","v":0},{"$f":"SUM(D36:D39)","v":0},{"$f":"D40/C40","v":{"$error":"#DIV/0!"}}]
[]
[null,"Date de début de convention Slime+"]
["Taux de co-financement CEE",2022,2023,2024,2025]
[null,0.7,0.7,0.6,0.5]
[]
["Présentation générale de l'action\nVous pouvez accompagner le dossier de candidature d'un schéma explicatif"]
[null,null,null,"Dans quel.s outil.s de politique publique le Slime est-il inscrit?"]
[]
[]
[null,null,null,"Type de dossier"]
["Comment est animé/coordonné le dispositif ? (cf critère 6)\nQui assure l'animation générale du dispositif, l'information et la coordination régulière des partenaires concernés ; et selon quelles modalités (instances de gouvernance, fonctionnement et outils utilisés, etc.) ?"]
[]
["Qui sont les publics ciblés par le dispositif ? (cf critère 2)\nPréciser les critères retenus par la collectivité pour qualifier la précarité énergétique et ajouter au dossier la fiche de repérage / navette."]
[null,null,null,"Quels sont les critères retenus pour caractériser la précarité énergétique ?","Revenus très modestes (seuils ANAH)"]
[]
[]
[]
[]
[]
[]
[]
["Comment et par qui sont repérés les ménages ?  (cf critère 3)\nIdentification des donneurs d'alerte / fréquence et modalité des réunions d'information des donneurs d'alerte / modalités de repérage"]
[null,null,null,"Mobilisation des travailleurs sociaux de la collectivité pilote"]
[null,null,null,"Mobilisation des travailleurs sociaux d'une collectivité partenaire (CCAS, Département …)"]
[null,null,null,"Réseau de donneurs d'alertes externe à la collectivité"]
[null,null,null,"Traitement des dossiers FSL"]
[null,null,null,"Campagne de visites systématiques sur des zones identifiées"]
[null,null,null,"Utilisation des fichiers d'impayés "]
[null,null,null,"Campagne de communication à destination des ménages"]
[null,null,null,"Animations et sensibilisation à la précarité énergétique"]
[null,null,null,"Autres démarches d'identification, à préciser"]
["Qui réalise les visites à domicile ? \nprofil et nombre de personnes en charge de réaliser les visites"]
[null,null,null,"Qui réalise les visites à domicile ?"]
[null,null,null,"Modalités de la visite",{"$f":"A31","v":1904},{"$f":"A32","v":"-"},{"$f":"A33","v":"-"},{"$f":"A34","v":"-"}]
[]
[null,null,null,"Profil du chargé de visite",{"$f":"A31","v":1904},{"$f":"A32","v":"-"},{"$f":"A33","v":"-"},{"$f":"A34","v":"-"}]
[]
[null,null,null,"Profil du second chargé de visite (si binôme)",{"$f":"A31","v":1904},{"$f":"A32","v":"-"},{"$f":"A33","v":"-"},{"$f":"A34","v":"-"}]
[]
[null,null,null,"Besoin de formation au diagnostic sociotechnique "]
[null,null,null,"Nombre de chargés de visite à former"]
[null,null,null,"Formation pour habilitation électrique"]
[null,null,null,"Nombre de chargés de visite mobilisés pour le Slime"]
["Comment se déroule une visite à domicile ? \ndéroulement / durée / contenu du kit (cf critères 4 et 5)"]
[null,null,null,"Nombre de visites par ménage",{"$f":"A31","v":1904},{"$f":"A32","v":"-"},{"$f":"A33","v":"-"},{"$f":"A34","v":"-"}]
[]
[null,null,null,"Durée totale de la/des visites"]
[null,null,null,"Qui installe les équipements d'économies d'énergie ?"]
["Détailler le circuit et les modalités d'orientation et de soutien renforcé des ménages\nComment sont repérées les structures proposant des solutions ? (cf critère 7)\nL'orientation se fait-elle pendant ou après la visite / par qui ? / vers quelles structures ? / vers quel type de solutions ? / avec quels outils ?\nUn comité technique ou comité d'orientation est-il prévu pour passer en revue les dossiers ?\nQuelles sont les modalités de soutien renforcé / quels services et partenaires réalisent chacun de ces accompagnements / quels besoins en formation ? ( cf critère 8)"]
[null,null,null,"Quand le ménage est-il orienté ?"]
[null,null,null,"Quel est le principal format de remise du rapport de visite ?"]
[null,null,null,"Qui est le principal décideur pour  l'orientation des ménages ?"]
[]
[]
[null,null,null,null,null,"Détailler l'orientation","Détailler le soutien renforcé en lien avec l'orientation","Partenaire en charge du soutien renforcé"]
[null,null,null,"Quelles sont les modalités d'orientation et de soutien renforcé prévues par le dispositif ? \n-\nQuels services/partenaires réalisent chacun de ces accompagnements ?\n?\n\n Liste non exhaustive :\n- Mise en place d'une action de médiation bailleur-locataire sur les questions énergétiques dans le logement,\n- Aide aux démarches administratives : pour changer de logement, remplir une déclaration de revenus, changer de fournisseur/de contrat d'énergie, faire une demande de prêt ou d'échelonnement d'une dette d'énergie...\n- Suivi régulier de la mise en œuvre des orientations post-visite : rappels téléphoniques du ménage/des acteurs relais, nouvelle(s) visite(s)...\n- Aide à la gestion budgétaire, \n- Suivi et analyse des consommations d'énergie sur un temps long,\n- Etc. "]
[]
[]
[]
[]
[]
[]
[null,null,null,"Besoin de formation à la \"médiation bailleur-locataire\""]
["Options complémentaires (intégrées dans le forfait)"]
[]
[]
["Soutien renforcé (au-delà des 20%)\nDétailler les actions mises en place si différentes de celles prévues dans l'objectif socle de 20% des ménages"]
[null,null,null,null,{"$f":"A31","v":1904},{"$f":"A32","v":"-"},{"$f":"A33","v":"-"},{"$f":"A34","v":"-"},"Il est prévu qu’au moins 20% des ménages bénéficiaires du Slime bénéficient d’un soutien renforcé vers la mise en œuvre des solutions. Une bonification de 50€ est accordée à chaque tranche supplémentaire de 10% de ménages bénéficiant d'un soutien renforcé."]
[null,null,null,"Prévu par le dispositif ?","NON","NON","NON","NON"]
["Forte articulation avec un dispositif de type FSATME\nDétailler les actions mises en place"]
[null,null,null,null,{"$f":"A31","v":1904},{"$f":"A32","v":"-"},{"$f":"A33","v":"-"},{"$f":"A34","v":"-"},"La collectivité développe des dispositifs correspondant aux besoins identifiés dans le cadre du Slime et qui bénéficieront à au moins 20% des ménages bénéficiaires (exemple : Fond social d’aide aux travaux de maitrise d’énergie, fond d’aide au remplacement d’équipements…). "]
[null,null,null,"Prévu par le dispositif ?","NON","NON","NON","NON"]
["Suivi à N+1\nDétailler les actions mises en place"]
[null,null,null,null,{"$f":"A31","v":1904},{"$f":"A32","v":"-"},{"$f":"A33","v":"-"},{"$f":"A34","v":"-"},"La collectivité prévoit un nouveau RDV à N+1 avec au moins 15% des ménages afin d'identifier de nouvelles actions à mettre en place."]
[null,null,null,"Prévu par le dispositif ?","NON","NON","NON","NON"]
["Options complémentaires (par action)"]
[]
[]
["Animation territoriale\nDétailler les actions mises en place"]
[null,null,null,"Prévu par le dispositif ?","NON","La collectivité développe et consolide un réseau de partenaires susceptibles d’identifier et d’accompagner les ménages en situation de précarité énergétique.\n\nLa collectivité assure la coordination d'un comité dédié à l'orientation des ménages.\n\nCette tranche n'est accessible qu'aux collectivités engagées dans un dispositif pluriannuel (minimum 18 mois)"]
["Evaluation locale\nDétailler les actions mises en place"]
[null,null,null,"Prévu par le dispositif ?","NON","La collectivité s'engage à mettre en place une démarche d'évaluation locale de leur dispositif."]
["Réalisation des médiations"]
[null,null,null,null,{"$f":"A31","v":1904},{"$f":"A32","v":"-"},"La collectivité réalise des actions de médiation avec au moins 5% des ménages. La collectivité choisissant cette option complémentaire doit respecter les engagements présentés en annexe 16 de la convention."]
[null,null,null,"Prévu par le dispositif ?","NON","NON"]

{"sheet":"2. Bilan annees precedentes","index":2,"n_rows":21,"n_cols":5,"rows_kept":21,"cut":false,"hidden":false,"merged":[[0,1,3,4],[4,2,4,3],[5,2,5,3],[4,0,4,1],[5,0,5,1],[6,0,6,1],[7,0,7,1],[8,2,8,3],[18,0,18,4],[5,4,7,4],[13,0,13,4],[15,0,15,4],[17,0,17,4],[9,2,9,3],[6,2,6,3],[8,0,8,1],[20,0,20,4],[19,0,19,4],[21,0,21,4],[7,2,7,3],[12,0,12,4],[14,0,14,4],[16,0,16,4],[10,2,10,3],[11,2,11,3],[10,0,10,1],[11,0,11,1],[9,4,11,4],[9,0,9,1]]}
[null,"Bilan de la période précédente\n\nMerci de ne compléter que les cases jaunes et rouges foncées (menus déroulants)\nLes cases rouges clair se remplissent automatiquement"]
[]
[]
[]
["Date de début du Slime",null,"Date de fin du Slime",null,"Durée de l'action (en mois)"]
[null,null,null,null,{"$f":"ROUND((C6-A6)*12/365,0)","v":0}]
["Budget prévisionnel de la collectivité pour le Slime ",null,"Budget réel de la collectivité pour le Slime "]
[]
["Nombre prévu de ménages recevant une visite sur la période",null,"Nombre réel de ménages ayant reçu une visite sur la période",null,"Nombre de ménages sur le territoire d'action"]
[]
["Objectif de visite prévu (%)",null,"Objectif de visite réalisé (%)"]
[{"$f":"IF($E$6=0,0,IF($E$10=0,0,(A10*12*1000)/($E$10*$E$6)))","v":0},null,{"$f":"IF($E$6=0,0,IF($E$10=0,0,(C10*12*1000)/($E$10*$E$6)))","v":0}]
["Pour quelles raisons la collectivité souhaite-t-elle renouveler son dispositif ?"]
[]
["Éléments qualitatifs sur le repérage\nQuelles ont été vos difficultés ? Comment ont-elles été surmontées ? Qu'est-ce qui change depuis le dernier Slime ? Qu'est-ce qui perdure ?\nVous pouvez également partager des réussites sur la mise en œuvre du Slime."]
[]
["Éléments qualitatifs sur la réalisation des visites à domicile\nQuelles ont été vos difficultés ? Comment ont-elles été surmontées ? Qu'est-ce qui change depuis le dernier Slime ? Qu'est-ce qui perdure ?\nVous pouvez également partager des réussites sur la mise en œuvre du Slime."]
[]
["Éléments qualitatifs sur l'orientation et le soutien renforcé\nQuelles ont été vos difficultés ? Comment ont-elles été surmontées ? Qu'est-ce qui change depuis le dernier Slime ? Qu'est-ce qui perdure ?\nVous pouvez également partager des réussites sur la mise en œuvre du Slime."]
[]
["Autres éléments sur la mise en oeuvre du Slime \nLe Slime a-t-il permis de déclencher d'autres actions ? A-t-il contribué à identifier, voire à répondre (par des actions/dispostifs complémentaires) à d'autres besoins pour lutter contre la précarité énergétique ?"]

{"sheet":"3. Budget","index":3,"n_rows":100,"n_cols":27,"rows_kept":100,"cut":false,"hidden":false,"merged":[[74,0,74,4],[74,7,74,11],[74,14,74,18],[74,21,74,25],[81,21,81,25],[83,21,83,25],[73,21,73,25],[77,1,77,2],[77,3,77,4],[78,1,78,2],[79,1,79,2],[80,1,80,2],[76,0,76,5],[81,0,81,4],[76,7,76,12],[77,8,77,9],[77,10,77,11],[78,8,78,9],[79,8,79,9],[80,8,80,9],[81,7,81,11],[77,17,77,18],[76,14,76,19],[77,15,77,16],[76,21,76,26],[77,22,77,23],[78,10,78,11],[79,10,79,11],[42,21,42,25],[55,21,55,25],[56,21,56,25],[69,21,69,25],[58,26,62,26],[64,26,68,26],[44,26,48,26],[50,26,54,26],[77,24,77,25],[21,26,30,26],[32,26,41,26],[0,7,3,12],[4,7,4,12],[5,7,5,11],[6,7,6,11],[0,21,3,26],[4,21,4,26],[5,21,5,25],[6,21,6,25],[19,21,19,25],[8,26,12,26],[14,26,18,26],[0,14,3,19],[4,14,4,19],[5,14,5,18],[6,14,6,18],[8,19,12,19],[14,19,18,19],[19,14,19,18],[21,19,30,19],[32,19,41,19],[8,12,12,12],[14,12,18,12],[90,2,90,5],[91,2,91,5],[42,14,42,18],[44,19,48,19],[50,19,54,19],[55,14,55,18],[56,14,56,18],[58,19,62,19],[64,19,68,19],[69,14,69,18],[73,14,73,18],[83,14,83,18],[85,0,88,5],[89,0,89,5],[83,7,83,11],[69,7,69,11],[73,7,73,11],[78,15,78,16],[79,15,79,16],[80,15,80,16],[81,14,81,18],[78,3,78,4],[79,3,79,4],[80,3,80,4],[19,7,19,11],[21,12,30,12],[32,12,41,12],[55,7,55,11],[56,7,56,11],[58,12,62,12],[64,12,68,12],[42,7,42,11],[44,12,48,12],[50,12,54,12],[94,2,94,5],[95,2,95,5],[96,2,96,5],[0,0,3,5],[4,0,4,5],[5,0,5,4],[6,0,6,4],[19,0,19,4],[42,0,42,4],[55,0,55,4],[56,0,56,4],[69,0,69,4],[73,0,73,4],[8,5,12,5],[50,5,54,5],[44,5,48,5],[14,5,18,5],[21,5,30,5],[32,5,41,5],[58,5,62,5],[64,5,68,5],[92,2,92,5],[93,2,93,5],[83,0,83,4],[80,10,80,11],[78,17,78,18],[79,17,79,18],[80,17,80,18],[78,24,78,25],[79,24,79,25],[80,24,80,25],[78,22,78,23],[79,22,79,23],[80,22,80,23]]}
["Budget prévisionnel\n\nMerci de ne compléter que les cases jaunes et rouges foncées (menus déroulants)\nLes cases rouges clair se remplissent automatiquement",null,null,null,null,null,null,"Budget prévisionnel\n\nMerci de ne compléter que les cases jaunes et rouges foncées (menus déroulants)\nLes cases rouges clair se remplissent automatiquement",null,null,null,null,null,null,"Budget prévisionnel\n\nMerci de ne compléter que les cases jaunes et rouges foncées (menus déroulants)\nLes cases rouges clair se remplissent automatiquement",null,null,null,null,null,null,"Budget prévisionnel\n\nMerci de ne compléter que les cases jaunes et rouges foncées (menus déroulants)\nLes cases rouges clair se remplissent automatiquement"]
[]
[]
[]
[{"$f":"CONCATENATE(\"DÉPENSES PRÉVISIONNELLES DE LA COLLECTIVITÉ ANNÉE \",'1. Description generale'!A31)","v":"DÉPENSES PRÉVISIONNELLES DE LA COLLECTIVITÉ ANNÉE 1904"},null,null,null,null,null,null,{"$f":"CONCATENATE(\"DÉPENSES PRÉVISIONNELLES DE LA COLLECTIVITÉ ANNÉE \",'1. Description generale'!A32)","v":"DÉPENSES PRÉVISIONNELLES DE LA COLLECTIVITÉ ANNÉE -"},null,null,null,null,null,null,{"$f":"CONCATENATE(\"DÉPENSES PRÉVISIONNELLES DE LA COLLECTIVITÉ ANNÉE \",'1. Description generale'!A33)","v":"DÉPENSES PRÉVISIONNELLES DE LA COLLECTIVITÉ ANNÉE -"},null,null,null,null,null,null,{"$f":"CONCATENATE(\"DÉPENSES PRÉVISIONNELLES DE LA COLLECTIVITÉ ANNÉE \",'1. Description generale'!A34)","v":"DÉPENSES PRÉVISIONNELLES DE LA COLLECTIVITÉ ANNÉE -"}]
[{"$f":" \"Activités \" & '1. Description generale'!A31","v":"Activités 1904"},null,null,null,null,{"$f":"\"Dépenses prévisionnelles (€) \"& '1. Description generale'!A31","v":"Dépenses prévisionnelles (€) 1904"},null,{"$f":" \"Activités \" & '1. Description generale'!A32","v":"Activités -"},null,null,null,null,{"$f":"\"Dépenses prévisionnelles (€) \"& '1. Description generale'!A32","v":"Dépenses prévisionnelles (€) -"},null,{"$f":" \"Activités \" & '1. Description generale'!A33","v":"Activités -"},null,null,null,null,{"$f":"\"Dépenses prévisionnelles (€) \"& '1. Description generale'!A33","v":"Dépenses prévisionnelles (€) -"},null,{"$f":" \"Activités \" & '1. Description generale'!A34","v":"Activités -"},null,null,null,null,{"$f":"\"Dépenses prévisionnelles (€) \"& '1. Description generale'!A34","v":"Dépenses prévisionnelles (€) -"}]
["1. Coordination du dispositif et animation territoriale",null,null,null,null,{"$f":"F9+F15","v":0},null,"1. Coordination du dispositif et animation territoriale",null,null,null,null,{"$f":"M9+M15","v":0},null,"1. Coordination du dispositif et animation territoriale",null,null,null,null,{"$f":"T9+T15","v":0},null,"1. Coordination du dispositif et animation territoriale",null,null,null,null,{"$f":"AA9+AA15","v":0}]
["Dépenses d'exploitation (frais directs)","détailler dépense si besoin","Coût jour ou unitaire","Nombre (jours, km, kits, etc)","Montant (€)",null,null,"Dépenses d'exploitation (frais directs)","détailler dépense si besoin","Coût jour ou unitaire","Nombre (jours, km, kits, etc)","Montant (€)",null,null,"Dépenses d'exploitation (frais directs)","détailler dépense si besoin","Coût jour ou unitaire","Nombre (jours, km, kits, etc)","Montant (€)",null,null,"Dépenses d'exploitation (frais directs)","détailler dépense si besoin","Coût jour ou unitaire","Nombre (jours, km, kits, etc)","Montant (€)"]
[null,null,null,null,{"$f":"C9*D9","v":0},{"$f":"SUM(E9:E13)","v":0},null,null,null,null,null,{"$f":"J9*K9","v":0},{"$f":"SUM(L9:L13)","v":0},null,null,null,null,null,{"$f":"Q9*R9","v":0},{"$f":"SUM(S9:S13)","v":0},null,null,null,null,null,{"$f":"X9*Y9","v":0},{"$f":"SUM(Z9:Z13)","v":0}]
[null,null,null,null,{"$f":"C10*D10","v":0},null,null,null,null,null,null,{"$f":"J10*K10","v":0},null,null,null,null,null,null,{"$f":"Q10*R10","v":0},null,null,null,null,null,null,{"$f":"X10*Y10","v":0}]
[null,null,null,null,0,null,null,null,null,null,null,0,null,null,null,null,null,null,0,null,null,null,null,null,null,0]
[null,null,null,null,0,null,null,null,null,null,null,0,null,null,null,null,null,null,0,null,null,null,null,null,null,0]
[null,null,null,null,0,null,null,null,null,null,null,0,null,null,null,null,null,null,0,null,null,null,null,null,null,0]
["Dépenses de personnel (moyens humains)","détailler dépense si besoin","Coût jour ou unitaire","Nombre (jours, km, kits, etc)","Montant (€)",null,null,"Dépenses de personnel (moyens humains)","détailler dépense si besoin","Coût jour ou unitaire","Nombre (jours, km, kits, etc)","Montant (€)",null,null,"Dépenses de personnel (moyens humains)","détailler dépense si besoin","Coût jour ou unitaire","Nombre (jours, km, kits, etc)","Montant (€)",null,null,"Dépenses de personnel (moyens humains)","détailler dépense si besoin","Coût jour ou unitaire","Nombre (jours, km, kits, etc)","Montant (€)"]
[null,null,null,null,0,{"$f":"SUM(E15:E19)","v":0},null,null,null,null,null,{"$f":"J15*K15","v":0},{"$f":"SUM(L15:L19)","v":0},null,null,null,null,null,{"$f":"Q15*R15","v":0},{"$f":"SUM(S15:S19)","v":0},null,null,null,null,null,{"$f":"X15*Y15","v":0},{"$f":"SUM(Z15:Z19)","v":0}]
[null,null,null,null,0,null,null,null,null,null,null,0,null,null,null,null,null,null,0,null,null,null,null,null,null,0]
[null,null,null,null,0,null,null,null,null,null,null,0,null,null,null,null,null,null,0,null,null,null,null,null,null,0]
[null,null,null,null,0,null,null,null,null,null,null,0,null,null,null,null,null,null,0,null,null,null,null,null,null,0]
[null,null,null,null,0,null,null,null,null,null,null,0,null,null,null,null,null,null,0,null,null,null,null,null,null,0]
["2. Diagnostics socio-techniques et soutien renforcé",null,null,null,null,{"$f":"F22+F33","v":0},null,"2. Diagnostics socio-techniques et soutien renforcé",null,null,null,null,{"$f":"M22+M33","v":0},null,"2. Diagnostics socio-techniques et soutien renforcé",null,null,null,null,{"$f":"T22+T33","v":0},null,"2. Diagnostics socio-techniques et soutien renforcé",null,null,null,null,{"$f":"AA22+AA33","v":0}]
["Dépenses d'exploitation (frais directs)","détailler dépense si besoin","Coût jour ou unitaire","Nombre (jours, km, kits, etc)","Montant (€)",null,null,"Dépenses d'exploitation (frais directs)","détailler dépense si besoin","Coût jour ou unitaire","Nombre (jours, km, kits, etc)","Montant (€)",null,null,"Dépenses d'exploitation (frais directs)","détailler dépense si besoin","Coût jour ou unitaire","Nombre (jours, km, kits, etc)","Montant (€)",null,null,"Dépenses d'exploitation (frais directs)","détailler dépense si besoin","Coût jour ou unitaire","Nombre (jours, km, kits, etc)","Montant (€)"]
[null,null,null,null,0,{"$f":"SUM(E22:E31)","v":0},null,null,null,null,null,{"$f":"J22*K22","v":0},{"$f":"SUM(L22:L31)","v":0},null,null,null,null,null,{"$f":"Q22*R22","v":0},{"$f":"SUM(S22:S31)","v":0},null,null,null,null,null,{"$f":"X22*Y22","v":0},{"$f":"SUM(Z22:Z31)","v":0}]
[null,null,null,null,0,null,null,null,null,null,null,0,null,null,null,null,null,null,0,null,null,null,null,null,null,0]
[null,null,null,null,0,null,null,null,null,null,null,0,null,null,null,null,null,null,0,null,null,null,null,null,null,0]
[null,null,null,null,0,null,null,null,null,null,null,0,null,null,null,null,null,null,0,null,null,null,null,null,null,0]
[null,null,null,null,0,null,null,null,null,null,null,0,null,null,null,null,null,null,0,null,null,null,null,null,null,0]
[null,null,null,null,0,null,null,null,null,null,null,0,null,null,null,null,null,null,0,null,null,null,null,null,null,0]
[null,null,null,null,0,null,null,null,null,null,null,0,null,null,null,null,null,null,0,null,null,null,null,null,null,0]
[null,null,null,null,0,null,null,null,null,null,null,0,null,null,null,null,null,null,0,null,null,null,null,null,null,0]
[null,null,null,null,0,null,null,null,null,null,null,0,null,null,null,null,null,null,0,null,null,null,null,null,null,0]
[null,null,null,null,0,null,null,null,null,null,null,0,null,null,null,null,null,null,0,null,null,null,null,null,null,0]
["Dépenses de personnel (moyens humains)","détailler dépense si besoin","Coût jour ou unitaire","Nombre (jours, km, kits, etc)","Montant (€)",null,null,"Dépenses de personnel (moyens humains)","détailler dépense si besoin","Coût jour ou unitaire","Nombre (jours, km, kits, etc)","Montant (€)",null,null,"Dépenses de personnel (moyens humains)","détailler dépense si besoin","Coût jour ou unitaire","Nombre (jours, km, kits, etc)","Montant (€)",null,null,"Dépenses de personnel (moyens humains)","détailler dépense si besoin","Coût jour ou unitaire","Nombre (jours, km, kits, etc)","Montant (€)"]
[null,null,null,null,{"$f":"C33*D33","v":0},{"$f":"SUM(E33:E42)","v":0},null,null,null,null,null,{"$f":"J33*K33","v":0},{"$f":"SUM(L33:L42)","v":0},null,null,null,null,null,{"$f":"Q33*R33","v":0},{"$f":"SUM(S33:S42)","v":0},null,null,null,null,null,{"$f":"X33*Y33","v":0},{"$f":"SUM(Z33:Z42)","v":0}]
[null,null,null,null,{"$f":"C34*D34","v":0},null,null,null,null,null,null,0,null,null,null,null,null,null,0,null,null,null,null,null,null,0]
[null,null,null,null,0,null,null,null,null,null,null,0,null,null,null,null,null,null,0,null,null,null,null,null,null,0]
[null,null,null,null,0,null,null,null,null,null,null,0,null,null,null,null,null,null,0,null,null,null,null,null,null,0]
[null,null,null,null,0,null,null,null,null,null,null,0,null,null,null,null,null,null,0,null,null,null,null,null,null,0]
[null,null,null,null,0,null,null,null,null,null,null,0,null,null,null,null,null,null,0,null,null,null,null,null,null,0]
[null,null,null,null,0,null,null,null,null,null,null,0,null,null,null,null,null,null,0,null,null,null,null,null,null,0]
[null,null,null,null,0,null,null,null,null,null,null,0,null,null,null,null,null,null,0,null,null,null,null,null,null,0]
[null,null,null,null,0,null,null,null,null,null,null,0,null,null,null,null,null,null,0,null,null,null,null,null,null,0]
[null,null,null,null,0,null,null,null,null,null,null,0,null,null,null,null,null,null,0,null,null,null,null,null,null,0]
["3. Evaluation",null,null,null,null,{"$f":"F45+F51","v":0},null,"3. Evaluation",null,null,null,null,{"$f":"M45+M51","v":0},null,"3. Evaluation",null,null,null,null,{"$f":"T45+T51","v":0},null,"3. Evaluation",null,null,null,null,{"$f":"AA45+AA51","v":0}]
["Dépenses d'exploitation (frais directs)","détailler dépense si besoin","Coût jour ou unitaire","Nombre (jours, km, kits, etc)","Montant (€)",null,null,"Dépenses d'exploitation (frais directs)","détailler dépense si besoin","Coût jour ou unitaire","Nombre (jours, km, kits, etc)","Montant (€)",null,null,"Dépenses d'exploitation (frais directs)","détailler dépense si besoin","Coût jour ou unitaire","Nombre (jours, km, kits, etc)","Montant (€)",null,null,"Dépenses d'exploitation (frais directs)","détailler dépense si besoin","Coût jour ou unitaire","Nombre (jours, km, kits, etc)","Montant (€)"]
[null,null,null,null,0,{"$f":"SUM(E45:E49)","v":0},null,null,null,null,null,{"$f":"J45*K45","v":0},{"$f":"SUM(L45:L49)","v":0},null,null,null,null,null,{"$f":"Q45*R45","v":0},{"$f":"SUM(S45:S49)","v":0},null,null,null,null,null,{"$f":"X45*Y45","v":0},{"$f":"SUM(Z45:Z49)","v":0}]
[null,null,null,null,0,null,null,null,null,null,null,0,null,null,null,null,null,null,0,null,null,null,null,null,null,0]
[null,null,null,null,0,null,null,null,null,null,null,0,null,null,null,null,null,null,0,null,null,null,null,null,null,0]
[null,null,null,null,0,null,null,null,null,null,null,0,null,null,null,null,null,null,0,null,null,null,null,null,null,0]
[null,null,null,null,0,null,null,null,null,null,null,0,null,null,null,null,null,null,0,null,null,null,null,null,null,0]
["Dépenses de personnel (moyens humains)","détailler dépense si besoin","Coût jour ou unitaire","Nombre (jours, km, kits, etc)","Montant (€)",null,null,"Dépenses de personnel (moyens humains)","détailler dépense si besoin","Coût jour ou unitaire","Nombre (jours, km, kits, etc)","Montant (€)",null,null,"Dépenses de personnel (moyens humains)","détailler dépense si besoin","Coût jour ou unitaire","Nombre (jours, km, kits, etc)","Montant (€)",null,null,"Dépenses de personnel (moyens humains)","détailler dépense si besoin","Coût jour ou unitaire","Nombre (jours, km, kits, etc)","Montant (€)"]
[null,null,null,null,0,{"$f":"SUM(E51:E55)","v":0},null,null,null,null,null,{"$f":"J51*K51","v":0},{"$f":"SUM(L51:L55)","v":0},null,null,null,null,null,{"$f":"Q51*R51","v":0},{"$f":"SUM(S51:S55)","v":0},null,null,null,null,null,{"$f":"X51*Y51","v":0},{"$f":"SUM(Z51:Z55)","v":0}]
[null,null,null,null,0,null,null,null,null,null,null,0,null,null,null,null,null,null,0,null,null,null,null,null,null,0]
[null,null,null,null,0,null,null,null,null,null,null,0,null,null,null,null,null,null,0,null,null,null,null,null,null,0]
[null,null,null,null,0,null,null,null,null,null,null,0,null,null,null,null,null,null,0,null,null,null,null,null,null,0]
[null,null,null,null,0,null,null,null,null,null,null,0,null,null,null,null,null,null,0,null,null,null,null,null,null,0]
["4. Formations et accompagnement méthodologique",null,null,null,null,{"$f":"F57+F70","v":0},null,"4. Formations et accompagnement méthodologique",null,null,null,null,{"$f":"M57+M70","v":0},null,"4. Formations et accompagnement méthodologique",null,null,null,null,{"$f":"T57+T70","v":0},null,"4. Formations et accompagnement méthodologique",null,null,null,null,{"$f":"AA57+AA70","v":0}]
["4.1 Formations",null,null,null,null,{"$f":"F59+F65","v":0},null,"4.1 Formations",null,null,null,null,{"$f":"M59+M65","v":0},null,"4.1 Formations",null,null,null,null,{"$f":"T59+T65","v":0},null,"4.1 Formations",null,null,null,null,{"$f":"AA59+AA65","v":0}]
["Dépenses d'exploitation (frais directs)","détailler dépense si besoin","Coût jour ou unitaire","Nombre (jours, km, kits, etc)","Montant (€)",null,null,"Dépenses d'exploitation (frais directs)","détailler dépense si besoin","Coût jour ou unitaire","Nombre (jours, km, kits, etc)","Montant (€)",null,null,"Dépenses d'exploitation (frais directs)","détailler dépense si besoin","Coût jour ou unitaire","Nombre (jours, km, kits, etc)","Montant (€)",null,null,"Dépenses d'exploitation (frais directs)","détailler dépense si besoin","Coût jour ou unitaire","Nombre (jours, km, kits, etc)","Montant (€)"]
[null,null,null,null,0,{"$f":"SUM(E59:E63)","v":0},null,null,null,null,null,{"$f":"J59*K59","v":0},{"$f":"SUM(L59:L63)","v":0},null,null,null,null,null,{"$f":"Q59*R59","v":0},{"$f":"SUM(S59:S63)","v":0},null,null,null,null,null,{"$f":"X59*Y59","v":0},{"$f":"SUM(Z59:Z63)","v":0}]
[null,null,null,null,0,null,null,null,null,null,null,0,null,null,null,null,null,null,0,null,null,null,null,null,null,0]
[null,null,null,null,0,null,null,null,null,null,null,0,null,null,null,null,null,null,0,null,null,null,null,null,null,0]
[null,null,null,null,0,null,null,null,null,null,null,0,null,null,null,null,null,null,0,null,null,null,null,null,null,0]
[null,null,null,null,0,null,null,null,null,null,null,0,null,null,null,null,null,null,0,null,null,null,null,null,null,0]
["Dépenses de personnel (moyens humains)","détailler dépense si besoin","Coût jour ou unitaire","Nombre (jours, km, kits, etc)","Montant (€)",null,null,"Dépenses de personnel (moyens humains)","détailler dépense si besoin","Coût jour ou unitaire","Nombre (jours, km, kits, etc)","Montant (€)",null,null,"Dépenses de personnel (moyens humains)","détailler dépense si besoin","Coût jour ou unitaire","Nombre (jours, km, kits, etc)","Montant (€)",null,null,"Dépenses de personnel (moyens humains)","détailler dépense si besoin","Coût jour ou unitaire","Nombre (jours, km, kits, etc)","Montant (€)"]
[null,null,null,null,0,{"$f":"SUM(E65:E69)","v":0},null,null,null,null,null,{"$f":"J65*K65","v":0},{"$f":"SUM(L65:L69)","v":0},null,null,null,null,null,{"$f":"Q65*R65","v":0},{"$f":"SUM(S65:S69)","v":0},null,null,null,null,null,{"$f":"X65*Y65","v":0},{"$f":"SUM(Z65:Z69)","v":0}]
[null,null,null,null,0,null,null,null,null,null,null,0,null,null,null,null,null,null,0,null,null,null,null,null,null,0]
[null,null,null,null,0,null,null,null,null,null,null,0,null,null,null,null,null,null,0,null,null,null,null,null,null,0]
[null,null,null,null,0,null,null,null,null,null,null,0,null,null,null,null,null,null,0,null,null,null,null,null,null,0]
[null,null,null,null,0,null,null,null,null,null,null,0,null,null,null,null,null,null,0,null,null,null,null,null,null,0]
["4.2 Accompagnement méthodologique",null,null,null,null,{"$f":"F72","v":0},null,"4.2 Accompagnement méthodologique",null,null,null,null,{"$f":"M72","v":0},null,"4.2 Accompagnement méthodologique",null,null,null,null,{"$f":"T72","v":0},null,"4.2 Accompagnement méthodologique",null,null,null,null,{"$f":"AA72","v":0}]
["Dépenses d'exploitation (frais directs)","détailler dépense si besoin","Coût jour ou unitaire","Nombre (jours, km, kits, etc)","Montant (€)",null,null,"Dépenses d'exploitation (frais directs)","détailler dépense si besoin","Coût jour ou unitaire","Nombre (jours, km, kits, etc)","Montant (€)",null,null,"Dépenses d'exploitation (frais directs)","détailler dépense si besoin","Coût jour ou unitaire","Nombre (jours, km, kits, etc)","Montant (€)",null,null,"Dépenses d'exploitation (frais directs)","détailler dépense si besoin","Coût jour ou unitaire","Nombre (jours, km, kits, etc)","Montant (€)"]
[null,null,null,null,{"$f":"C72*D72","v":0},{"$f":"E72","v":0},null,null,null,null,null,{"$f":"J72*K72","v":0},{"$f":"L72","v":0},null,null,null,null,null,{"$f":"Q72*R72","v":0},{"$f":"S72","v":0},null,null,null,null,null,{"$f":"X72*Y72","v":0},{"$f":"Z72","v":0}]
[]
["TOTAL ANNUEL DES DÉPENSES PRÉVISIONNELLES DE LA COLLECTIVITÉ pour son Slime",null,null,null,null,{"$f":"F7+F20+F43+F56","v":0},null,"TOTAL ANNUEL DES DÉPENSES PRÉVISIONNELLES DE LA COLLECTIVITÉ pour son Slime",null,null,null,null,{"$f":"M7+M20+M43+M56","v":0},null,"TOTAL ANNUEL DES DÉPENSES PRÉVISIONNELLES DE LA COLLECTIVITÉ pour son Slime",null,null,null,null,{"$f":"T7+T20+T43+T56","v":0},null,"TOTAL ANNUEL DES DÉPENSES PRÉVISIONNELLES DE LA COLLECTIVITÉ pour son Slime",null,null,null,null,{"$f":"AA7+AA20+AA43+AA56","v":0}]
["ASSIETTE DES DÉPENSES PRÉVISIONNELLES ANNUELLES DE LA COLLECTIVITÉ ÉLIGIBLES AU FINANCEMENT Slime",null,null,null,null,{"$f":"(F9+F22+F45+F59+F72)+(F15+F33+F51+F65)*1.25","v":0},null,"ASSIETTE DES DÉPENSES PRÉVISIONNELLES ANNUELLES DE LA COLLECTIVITÉ ÉLIGIBLES AU FINANCEMENT Slime",null,null,null,null,{"$f":"(M9+M22+M45+M59+M72)+(M15+M33+M51+M65)*1.25","v":0},null,"ASSIETTE DES DÉPENSES PRÉVISIONNELLES ANNUELLES DE LA COLLECTIVITÉ ÉLIGIBLES AU FINANCEMENT Slime",null,null,null,null,{"$f":"(T9+T22+T45+T59+T72)+(T15+T33+T51+T65)*1.25","v":0},null,"ASSIETTE DES DÉPENSES PRÉVISIONNELLES ANNUELLES DE LA COLLECTIVITÉ ÉLIGIBLES AU FINANCEMENT Slime",null,null,null,null,{"$f":"(AA9+AA22+AA45+AA59+AA72)+(AA15+AA33+AA51+AA65)*1.25","v":0}]
[]
[{"$f":"CONCATENATE(\"DÉPENSES DIRECTES DES PARTENAIRES FINANCIERS ANNÉE \",'1. Description generale'!A31)","v":"DÉPENSES DIRECTES DES PARTENAIRES FINANCIERS ANNÉE 1904"},null,null,null,null,null,null,{"$f":"CONCATENATE(\"DÉPENSES DIRECTES DES PARTENAIRES FINANCIERS ANNÉE \",'1. Description generale'!A32)","v":"DÉPENSES DIRECTES DES PARTENAIRES FINANCIERS ANNÉE -"},null,null,null,null,null,null,{"$f":"CONCATENATE(\"DÉPENSES DIRECTES DES PARTENAIRES FINANCIERS ANNÉE \",'1. Description generale'!A33)","v":"DÉPENSES DIRECTES DES PARTENAIRES FINANCIERS ANNÉE -"},null,null,null,null,null,null,{"$f":"CONCATENATE(\"DÉPENSES DIRECTES DES PARTENAIRES FINANCIERS ANNÉE \",'1. Description generale'!A34)","v":"DÉPENSES DIRECTES DES PARTENAIRES FINANCIERS ANNÉE -"}]
["Activité concernée","Partenaire financier",null,"Bénéficiaire",null,"Dépenses",null,"Activité concernée","Partenaire financier",null,"Bénéficiaire",null,"Dépenses",null,"Activité concernée","Partenaire financier",null,"Bénéficiaire",null,"Dépenses",null,"Activité concernée","Partenaire financier",null,"Bénéficiaire",null,"Dépenses"]
[]
[]
[]
["DÉPENSES DES PARTENAIRES FINANCIERS (non éligible au financement Slime)",null,null,null,null,{"$f":"F79+F80+F81","v":0},null,"DÉPENSES DES PARTENAIRES FINANCIERS (non éligible au financement Slime)",null,null,null,null,{"$f":"M79+M80+M81","v":0},null,"DÉPENSES DES PARTENAIRES FINANCIERS (non éligible au financement Slime)",null,null,null,null,{"$f":"T79+T80+T81","v":0}]
[]
["BUDGET TOTAL DU DISPOSITIF (TOUS FINANCEURS CONFONDUS)",null,null,null,null,{"$f":"F74+F82","v":0},null,"BUDGET TOTAL DU DISPOSITIF (TOUS FINANCEURS CONFONDUS)",null,null,null,null,{"$f":"M74+M82","v":0},null,"BUDGET TOTAL DU DISPOSITIF (TOUS FINANCEURS CONFONDUS)",null,null,null,null,{"$f":"T74+T82","v":0},null,"BUDGET TOTAL DU DISPOSITIF (TOUS FINANCEURS CONFONDUS)",null,null,null,null,{"$f":"AA74+AA82","v":0}]
[]
["Budget prévisionnel\n\nMerci de ne compléter que les cases jaunes et rouges foncées (menus déroulants)\nLes cases rouges clair se remplissent automatiquement"]
[]
[]
[]
["RECETTES PREVISIONNELLES DU DISPOSITIF SUR TOUTE LA PÉRIODE"]
["Nom de la structure","Montant de la participation","Bénéficiaire"]
["Collectivité Pilote"]
["Partenaire financier 1"]
["Partenaire financier 2"]
["Partenaire financier 3"]
["Partenaire financier 4"]
["Partenaire financier 5"]
["Total",{"$f":"SUM(B92:B97)","v":0}]
["Recettes pour la collectivité",{"$f":"B92+(IF(C93=\"Finance la collectivité\",B93,0))+(IF(C94=\"Finance la collectivité\",B94,0))+(IF(C95=\"Finance la collectivité\",B95,0))+(IF(C96=\"Finance la collectivité\",B96,0))+(IF(C97=\"Finance la collectivité\",B97,0))","v":0}]
["Recettes finançant directement un partenaire opérationnel, des équipements … ",{"$f":"(IF(C94=\"Finance la collectivité\",0,B94))+(IF(C95=\"Finance la collectivité\",0,B95))+(IF(C96=\"Finance la collectivité\",0,B96))+(IF(C97=\"Finance la collectivité\",0,B97))+(IF(C93=\"Finance la collectivité\",0,B93))","v":0}]

{"sheet":"4. Equipements","index":4,"n_rows":53,"n_cols":19,"rows_kept":53,"cut":false,"hidden":false,"merged":[[31,0,31,8],[32,0,32,3],[32,5,32,8],[31,10,31,18],[32,10,32,13],[32,15,32,18],[0,1,3,8],[0,11,3,18],[27,1,30,8],[27,11,30,18],[5,0,5,3],[5,5,5,8],[4,0,4,8],[4,10,4,18],[5,10,5,13],[5,15,5,18]]}
[null,"Budget prévisionnel - petits équipements\n\nMerci de ne compléter que les cases jaunes\nLes cases rouges clair se remplissent automatiquement",null,null,null,null,null,null,null,null,null,"Budget prévisionnel - petits équipements\n\nMerci de ne compléter que les cases jaunes\nLes cases rouges clair se remplissent automatiquement"]
[]
[]
[]
[{"$f":"CONCATENATE(\"ANNEE \",'1. Description generale'!A31)","v":"ANNEE 1904"},null,null,null,null,null,null,null,null,null,{"$f":"CONCATENATE(\"ANNEE \",'1. Description generale'!A32)","v":"ANNEE -"}]
["Liste des équipements d'économie d'énergie installés chez les ménages pendant la visite à domicile",null,null,null,null,"Liste des équipements de mesure utilisés pendant les visites à domicile",null,null,null,null,"Liste des équipements d'économie d'énergie installés chez les ménages pendant la visite à domicile",null,null,null,null,"Liste des équipements de mesure utilisés pendant les visites à domicile"]
["Équipement d'économies d'énergie","Coût unitaire","Nombre","Total",null,"Équipements de mesure","Coût unitaire","Nombre","Total",null,"Équipement d'économies d'énergie","Coût unitaire","Nombre","Total",null,"Équipements de mesure","Coût unitaire","Nombre","Total"]
["Lampe de classe A pour la métropole",null,null,{"$f":"B8*C8","v":0},null,"Thermomètre",null,null,{"$f":"G8*H8","v":0},null,"Lampe de classe A pour la métropole",null,null,{"$f":"L8*M8","v":0},null,"Thermomètre",null,null,{"$f":"Q8*R8","v":0}]
["Coupe-veille automatique",null,null,{"$f":"B9*C9","v":0},null,"Thermomètre de frigo",null,null,{"$f":"G9*H9","v":0},null,"Coupe-veille automatique",null,null,{"$f":"L9*M9","v":0},null,"Thermomètre de frigo",null,null,{"$f":"Q9*R9","v":0}]
["Lampe à LED pour l'éclairage d'accentuation",null,null,0,null,"Hygromètre",null,null,0,null,"Lampe à LED pour l'éclairage d'accentuation",null,null,0,null,"Hygromètre",null,null,0]
["Isolation d’un réseau hydraulique de chauffage",null,null,0,null,"Mètre laser",null,null,0,null,"Isolation d’un réseau hydraulique de chauffage",null,null,0,null,"Mètre laser",null,null,0]
["Robinet thermostatique",null,null,0,null,"Débitmètre",null,null,0,null,"Robinet thermostatique",null,null,0,null,"Débitmètre",null,null,0]
["Programmateur d'intermittence centralisé pour un chauffage à combustible",null,null,0,null,"Wattmètre",null,null,0,null,"Programmateur d'intermittence centralisé pour un chauffage à combustible",null,null,0,null,"Wattmètre",null,null,0]
["Programmateur d'intermittence centralisé pour un chauffage électrique",null,null,0,null,"Autre équipement de mesure (préciser)",null,null,0,null,"Programmateur d'intermittence centralisé pour un chauffage électrique",null,null,0,null,"Autre équipement de mesure (préciser)",null,null,0]
["Reducteur de débit pour robinet",null,null,0,null,"Autre équipement de mesure (préciser)",null,null,0,null,"Reducteur de débit pour robinet",null,null,0,null,"Autre équipement de mesure (préciser)",null,null,0]
["Douchette économe",null,null,0,null,"Autre équipement de mesure (préciser)",null,null,0,null,"Douchette économe",null,null,0,null,"Autre équipement de mesure (préciser)",null,null,0]
["Réflecteur de chaleur",null,null,{"$f":"B17*C17","v":0},null,"TOTAL",null,null,{"$f":"SUM(I8:I16)","v":0},null,"Réflecteur de chaleur",null,null,{"$f":"L17*M17","v":0},null,"TOTAL",null,null,{"$f":"SUM(S8:S16)","v":0}]
["Joint de fenêtre",null,null,{"$f":"B18*C18","v":0},null,null,null,null,null,null,"Joint de fenêtre",null,null,{"$f":"L18*M18","v":0}]
["Bas de porte",null,null,0,null,null,null,null,null,null,"Bas de porte",null,null,0]
["Doubles-rideaux épais",null,null,0,null,null,null,null,null,null,"Doubles-rideaux épais",null,null,0]
["Autre équipement d'économie d'énergie (préciser)",null,null,0,null,null,null,null,null,null,"Autre équipement d'économie d'énergie (préciser)",null,null,0]
["Autre équipement d'économie d'énergie (préciser)",null,null,0,null,null,null,null,null,null,"Autre équipement d'économie d'énergie (préciser)",null,null,0]
["Autre équipement d'économie d'énergie (préciser)",null,null,0,null,null,null,null,null,null,"Autre équipement d'économie d'énergie (préciser)",null,null,0]
["Autre équipement d'économie d'énergie (préciser)",null,null,0,null,null,null,null,null,null,"Autre équipement d'économie d'énergie (préciser)",null,null,0]
["Autre équipement d'économie d'énergie (préciser)",null,null,0,null,null,null,null,null,null,"Autre équipement d'économie d'énergie (préciser)",null,null,0]
["TOTAL",null,null,{"$f":"SUM(D8:D25)","v":0},null,null,null,null,null,null,"TOTAL",null,null,{"$f":"SUM(N8:N25)","v":0}]
[]
[null,"Budget prévisionnel - petits équipements\n\nMerci de ne compléter que les cases jaunes\nLes cases rouges clair se remplissent automatiquement",null,null,null,null,null,null,null,null,null,"Budget prévisionnel - petits équipements\n\nMerci de ne compléter que les cases jaunes\nLes cases rouges clair se remplissent automatiquement"]
[]
[]
[]
[{"$f":"CONCATENATE(\"ANNEE \",'1. Description generale'!A33)","v":"ANNEE -"},null,null,null,null,null,null,null,null,null,{"$f":"CONCATENATE(\"ANNEE \",'1. Description generale'!A34)","v":"ANNEE -"}]
["Liste des équipements d'économie d'énergie installés chez les ménages pendant la visite à domicile",null,null,null,null,"Liste des équipements de mesure utilisés pendant les visites à domicile",null,null,null,null,"Liste des équipements d'économie d'énergie installés chez les ménages pendant la visite à domicile",null,null,null,null,"Liste des équipements de mesure utilisés pendant les visites à domicile"]
["Équipement d'économies d'énergie","Coût unitaire","Nombre","Total",null,"Équipements de mesure","Coût unitaire","Nombre","Total",null,"Équipement d'économies d'énergie","Coût unitaire","Nombre","Total",null,"Équipements de mesure","Coût unitaire","Nombre","Total"]
["Lampe de classe A pour la métropole",null,null,{"$f":"B35*C35","v":0},null,"Thermomètre",null,null,{"$f":"G35*H35","v":0},null,"Lampe de classe A pour la métropole",null,null,{"$f":"L35*M35","v":0},null,"Thermomètre",null,null,{"$f":"Q35*R35","v":0}]
["Coupe-veille automatique",null,null,{"$f":"B36*C36","v":0},null,"Thermomètre de frigo",null,null,{"$f":"G36*H36","v":0},null,"Coupe-veille automatique",null,null,{"$f":"L36*M36","v":0},null,"Thermomètre de frigo",null,null,{"$f":"Q36*R36","v":0}]
["Lampe à LED pour l'éclairage d'accentuation",null,null,0,null,"Hygromètre",null,null,0,null,"Lampe à LED pour l'éclairage d'accentuation",null,null,0,null,"Hygromètre",null,null,0]
["Isolation d’un réseau hydraulique de chauffage",null,null,0,null,"Mètre laser",null,null,0,null,"Isolation d’un réseau hydraulique de chauffage",null,null,0,null,"Mètre laser",null,null,0]
["Robinet thermostatique",null,null,0,null,"Débitmètre",null,null,0,null,"Robinet thermostatique",null,null,0,null,"Débitmètre",null,null,0]
["Programmateur d'intermittence centralisé pour un chauffage à combustible",null,null,0,null,"Wattmètre",null,null,0,null,"Programmateur d'intermittence centralisé pour un chauffage à combustible",null,null,0,null,"Wattmètre",null,null,0]
["Programmateur d'intermittence centralisé pour un chauffage électrique",null,null,0,null,"Autre équipement de mesure (préciser)",null,null,0,null,"Programmateur d'intermittence centralisé pour un chauffage électrique",null,null,0,null,"Autre équipement de mesure (préciser)",null,null,0]
["Reducteur de débit pour robinet",null,null,0,null,"Autre équipement de mesure (préciser)",null,null,0,null,"Reducteur de débit pour robinet",null,null,0,null,"Autre équipement de mesure (préciser)",null,null,0]
["Douchette économe",null,null,0,null,"Autre équipement de mesure (préciser)",null,null,0,null,"Douchette économe",null,null,0,null,"Autre équipement de mesure (préciser)",null,null,0]
["Réflecteur de chaleur",null,null,{"$f":"B44*C44","v":0},null,"TOTAL",null,null,{"$f":"SUM(I35:I43)","v":0},null,"Réflecteur de chaleur",null,null,{"$f":"L44*M44","v":0},null,"TOTAL",null,null,{"$f":"SUM(S35:S43)","v":0}]
["Joint de fenêtre",null,null,{"$f":"B45*C45","v":0},null,null,null,null,null,null,"Joint de fenêtre",null,null,{"$f":"L45*M45","v":0}]
["Bas de porte",null,null,0,null,null,null,null,null,null,"Bas de porte",null,null,0]
["Doubles-rideaux épais",null,null,0,null,null,null,null,null,null,"Doubles-rideaux épais",null,null,0]
["Autre équipement d'économie d'énergie (préciser)",null,null,0,null,null,null,null,null,null,"Autre équipement d'économie d'énergie (préciser)",null,null,0]
["Autre équipement d'économie d'énergie (préciser)",null,null,0,null,null,null,null,null,null,"Autre équipement d'économie d'énergie (préciser)",null,null,0]
["Autre équipement d'économie d'énergie (préciser)",null,null,0,null,null,null,null,null,null,"Autre équipement d'économie d'énergie (préciser)",null,null,0]
["Autre équipement d'économie d'énergie (préciser)",null,null,0,null,null,null,null,null,null,"Autre équipement d'économie d'énergie (préciser)",null,null,0]
["Autre équipement d'économie d'énergie (préciser)",null,null,0,null,null,null,null,null,null,"Autre équipement d'économie d'énergie (préciser)",null,null,0]
["TOTAL",null,null,{"$f":"SUM(D35:D52)","v":0},null,null,null,null,null,null,"TOTAL",null,null,{"$f":"SUM(N35:N52)","v":0}]

{"sheet":"5. Criteres de selection","index":5,"n_rows":26,"n_cols":3,"rows_kept":26,"cut":false,"hidden":false,"merged":[[17,0,20,0],[0,0,3,2]]}
["Critères de sélection\n\nMerci de ne compléter que les cases jaunes et rouges foncées (menus déroulants)\nLes cases rouges clair se remplissent automatiquement\n\nLe remplissage des colonnes B et C fait office d'engagement de la collectivité vis-à-vis des critères de sélection."]
[]
[]
[]
["Critères de sélection","Vérifié","Commentaires pour le jury de sélection (si besoin)"]
["1. Le dispositif est piloté et financé ou co-financé par une ou des collectivités locales, leur groupement et établissement ou un groupement d'intérêt public (GIP)."]
["2. Le dispositif cible les ménages en situation de précarité énergétique, telle que définie dans la loi n° 90-449 du 31 mai 1990 visant à la mise en oeuvre du droit au logement, et quel que soit le statut d'occupation du logement."]
["3. Le dispositif prévoit une ou plusieurs démarche(s) d’identification des publics cibles, qu'il est en mesure d'expliciter. Il s'agit de : "]
["Ø     Traiter le stock de dossiers FSL qui constitue un premier gisement de cas à visiter systématiquement, notamment les ménages qui ont bénéficié plusieurs fois d’aides pour impayés d’énergie. "]
["Ø     Mener une campagne de visites systématiques dans les zones où se concentrent les situations de précarité énergétique."]
["Ø     Intervenir au cas par cas, suite à un signalement par des « donneurs d’alertes » (travailleurs sociaux, intervenants médicaux…) ou par les ménages eux-mêmes."]
["Ø     Autre démarche d'identification (à détailler)"]
["4. Le dispositif comporte a minima une visite du ménage dans son logement, qui vise à établir avec la famille un diagnostic socio-technique de sa situation.  Cette visite ne pré-suppose pas de travaux. Elle est d'abord destinée à identifier les situations de précarité énergétique, et qualifier la situation du ménage. "]
["5. Le dispositif prévoit l’installation durant la visite, de petits équipements peu onéreux et permettant rapidement des économies et/ou l’amélioration du confort. Ces équipements peuvent concerner à la fois l’énergie et l’eau (ampoules basse consommation, multiprise avec interrupteur, joint de fenêtre, survitrage, aérateur de robinet, réducteur de débit…). "]
["6. En amont des visites, le dispositif prévoit et organise l’information et la coordination régulière des partenaires concernés, notamment pour les donneurs d’alerte et relais locaux à même de faire « remonter » des ménages susceptibles de bénéficier d’une visite à domicile."]
["7. Après la réalisation des visites, le dispositif prévoit les outils de liaison et l'organisation nécessaires pour assurer, chaque fois qu'ils pourraient être éligibles, la réorientation des ménages détectés via le Slime vers les dispositifs locaux et/ou nationaux de lutte contre la précarité énergétique mobilisables sur le territoire (notamment le programme Habiter Mieux)"]
["8. Le dispositif prévoit et détaille les modalités de soutien renforcé pour au moins 20% des ménages bénéficiaires du Slime, après la réalisation des visites et la réorientation des ménages vers des dispositifs adaptés à leur situation."]
["Un objectif minimal de 50 ménages par an est fixé pour toutes les collectivités\n\n9. Les objectifs des visites à domicile correspondent à :\nØ    Pour les territoires d'action (département, ville, EPCI, territoire expérimental circonscrit) de moins de 300 000 ménages :\nau moins 1/1000 ménage accompagné la première année\nau moins 1,5/1000 ménage accompagné la deuxième année\nau moins 2/1000 ménage accompagné la troisième année*\n*Au-delà de 450 ménages accompagnés la collectivité n’est plus soumise à une obligation\n\nØ    Pour les territoires d'action (département, ville, EPCI, territoire expérimental circonscrit) de plus de 300 000 ménages :\nAu moins 300 ménages accompagnés la première année\nAu moins 450 ménages accompagnés les années suivantes\n\nØ    au moins 1/1000 ménage par an pour les territoires d’action à densité peu élevée quelle que soit l’année de pilotage du Slime :\no\tde plein droit pour les collectivités possédant une densité de population inférieure à 50hab/km2",{"$f":"IF('1. Description generale'!B36=\"-\",'1. Description generale'!C36,'1. Description generale'!B36)","v":1},{"$f":"IF('1. Description generale'!D36=\"\",\"\",\"soit \" & '1. Description generale'!D36 & \" ménages qui recevront une visite\")","v":""}]
[null,{"$f":"IF('1. Description generale'!B37=\"-\",'1. Description generale'!C37,'1. Description generale'!B37)","v":""},{"$f":"IF('1. Description generale'!D37=\"\",\"\",\"soit \" & '1. Description generale'!D37 & \" ménages qui recevront une visite\")","v":""}]
[null,{"$f":"IF('1. Description generale'!B38=\"-\",'1. Description generale'!C38,'1. Description generale'!B38)","v":""},{"$f":"IF('1. Description generale'!D38=\"\",\"\",\"soit \" & '1. Description generale'!D38 & \" ménages qui recevront une visite\")","v":""}]
[null,{"$f":"IF('1. Description generale'!B39=\"-\",'1. Description generale'!C39,'1. Description generale'!B39)","v":""},{"$f":"IF('1. Description generale'!D39=\"\",\"\",\"soit \" & '1. Description generale'!D39 & \" ménages qui recevront une visite\")","v":""}]
["10. Le dispositif concerné n'est pas co-financé par l’ADEME, par l'ANAH ou par le SARE."]
["11. La collectivité s’engage à produire un récapitulatif annuel des dépenses liées au programme Slime, et à faire attester ce récapitulatif par :\n\n    le.la responsable dûment habilité.e pour engager légalement la structure;\n    le.la comptable public.que (pour ce qui concerne les dépenses d’exploitation - ou frais directs);\n    le.la responsable dûment habilité.e (DGA, DGS, responsable RH...) pour certifier l'exactitude du temps passé sur le projet pour l’ensemble des agents impliqués."]
["12. La collectivité s’engage à utiliser le logicial SoliDiag, mis à disposition par le CLER, pour le reporting des visites."]
["13. La collectivité s’engage à fournir un bilan annuel au CLER des activités (dépenses réalisées et ménages accompagnés et saisis dans SoliDiag)."]
["14. La collectivité s’engage à faire signer une fiche RGPD à chaque ménage bénéficiaire du dispositif et à conserver cette fiche qui attestera de la visite en cas d'audit."]

{"sheet":"6. Forfaits","index":6,"n_rows":50,"n_cols":9,"rows_kept":50,"cut":false,"hidden":false,"merged":[[49,0,49,7],[0,0,3,8],[45,0,45,7],[46,0,46,7],[47,0,47,7],[48,0,48,7],[37,1,37,2],[40,3,42,3],[36,0,36,8],[27,1,30,1],[20,0,21,8],[13,8,14,8],[22,0,22,1],[13,2,14,2],[13,3,14,3],[13,4,14,4],[37,3,38,3],[37,4,38,4],[39,7,40,7],[13,5,14,5],[13,7,14,7],[13,6,14,6],[5,1,5,8],[4,0,4,8],[24,0,26,0],[28,0,30,0],[31,0,34,1],[23,1,26,1],[13,0,18,1],[6,1,6,2],[6,3,6,4],[6,5,6,6],[6,7,6,8]]}
["Forfait"]
[]
[]
[]
["Forfait (visite)"]
["Base",300]
[null,{"$f":"'1. Description generale'!A31","v":1904},null,{"$f":"'1. Description generale'!A32","v":"-"},null,{"$f":"'1. Description generale'!A33","v":"-"},null,{"$f":"'1. Description generale'!A34","v":"-"}]
["DST réalisé en deux visites ou en binôme",{"$f":"IF('1. Description generale'!E75=\"En binôme\",\"OUI\",IF('1. Description generale'!E86=2,\"OUI\",IF('1. Description generale'!E86=\"Plus\",\"OUI\",\"NON\")))","v":"NON"},100,{"$f":"IF('1. Description generale'!F75=\"En binôme\",\"OUI\",IF('1. Description generale'!F86=2,\"OUI\",IF('1. Description generale'!F86=\"Plus\",\"OUI\",\"NON\")))","v":"NON"},100,{"$f":"IF('1. Description generale'!G75=\"En binôme\",\"OUI\",IF('1. Description generale'!G86=2,\"OUI\",IF('1. Description generale'!G86=\"Plus\",\"OUI\",\"NON\")))","v":"NON"},100,{"$f":"IF('1. Description generale'!H75=\"En binôme\",\"OUI\",IF('1. Description generale'!H86=2,\"OUI\",IF('1. Description generale'!H86=\"Plus\",\"OUI\",\"NON\")))","v":"NON"},100]
["Profil \"expert\"",{"$f":"IF('1. Description generale'!E77=\"Conseiller énergie\",\"OUI\",IF('1. Description generale'!E77=\"Travailleur social\",\"OUI\",IF('1. Description generale'!E77=\"Conseiller habitat\",\"OUI\",\"NON\")))","v":"NON"},100,{"$f":"IF('1. Description generale'!F77=\"Conseiller énergie\",\"OUI\",IF('1. Description generale'!F77=\"Travailleur social\",\"OUI\",IF('1. Description generale'!F77=\"Conseiller habitat\",\"OUI\",\"NON\")))","v":"NON"},100,{"$f":"IF('1. Description generale'!G77=\"Conseiller énergie\",\"OUI\",IF('1. Description generale'!G77=\"Travailleur social\",\"OUI\",IF('1. Description generale'!G77=\"Conseiller habitat\",\"OUI\",\"NON\")))","v":"NON"},100,{"$f":"IF('1. Description generale'!H77=\"Conseiller énergie\",\"OUI\",IF('1. Description generale'!H77=\"Travailleur social\",\"OUI\",IF('1. Description generale'!H77=\"Conseiller habitat\",\"OUI\",\"NON\")))","v":"NON"},100]
["Soutien renforcé (au-dela des 20% minimum)",{"$f":"IF('1. Description generale'!E109<>\"NON\",\"OUI\",\"NON\")","v":"NON"},{"$f":"IF('1. Description generale'!E109<>\"NON\",(MID('1. Description generale'!E109,7,2)*50/10),0)","v":0},{"$f":"IF('1. Description generale'!F109<>\"NON\",\"OUI\",\"NON\")","v":"NON"},{"$f":"IF('1. Description generale'!F109<>\"NON\",(MID('1. Description generale'!F109,7,2)*50/10),0)","v":0},{"$f":"IF('1. Description generale'!G109<>\"NON\",\"OUI\",\"NON\")","v":"NON"},{"$f":"IF('1. Description generale'!G109<>\"NON\",(MID('1. Description generale'!G109,7,2)*50/10),0)","v":0},{"$f":"IF('1. Description generale'!H109<>\"NON\",\"OUI\",\"NON\")","v":"NON"},{"$f":"IF('1. Description generale'!H109<>\"NON\",(MID('1. Description generale'!H109,7,2)*50/10),0)","v":0}]
["Forte articulation avec des dispositifs de type FSATME",{"$f":"'1. Description generale'!E112","v":"NON"},50,{"$f":"'1. Description generale'!F112","v":"NON"},50,{"$f":"'1. Description generale'!G112","v":"NON"},50,{"$f":"'1. Description generale'!H112","v":"NON"},50]
["Suivi N+1",{"$f":"'1. Description generale'!E115","v":"NON"},50,{"$f":"'1. Description generale'!F115","v":"NON"},50,{"$f":"'1. Description generale'!G115","v":"NON"},50,{"$f":"'1. Description generale'!H115","v":"NON"},50]
["Réalisation des médiations",{"$f":"'1. Description generale'!E125","v":"NON"},100,{"$f":"'1. Description generale'!F125","v":"NON"},100]
["FORFAIT (visite)",null,null,"Années","Forfait","Dégressivité","Dépenses prévisionnelles","Dépenses éligibles","Co-financements"]
[]
[null,null,{"$f":"B6+(SUMIF(B8:B13,\"OUI\",C8:C13))","v":300},{"$f":"'1. Description generale'!A31","v":1904},{"$f":"C16*'1. Description generale'!D36","v":0},{"$f":"'1. Description generale'!I31","v":"-"},{"$f":"'3. Budget'!F20","v":0},{"$f":"'3. Budget'!F22+('3. Budget'!F33)*1.25","v":0},{"$f":"IF(D16=\"-\",0,(IF(E16>(F16*H16),F16*H16,E16)))","v":{"$error":"#VALUE!"}}]
[null,null,{"$f":"B6+(SUMIF(D8:D13,\"OUI\",E8:E13))","v":300},{"$f":"'1. Description generale'!A32","v":"-"},{"$f":"C17*'1. Description generale'!D37","v":0},{"$f":"'1. Description generale'!I32","v":"-"},{"$f":"'3. Budget'!M20","v":0},{"$f":"'3. Budget'!M22+('3. Budget'!M33)*1.25","v":0},{"$f":"IF(D17=\"-\",0,(IF(E17>(F17*H17),F17*H17,E17)))","v":0}]
[null,null,{"$f":"B6+(SUMIF(F8:F13,\"OUI\",G8:G13))","v":300},{"$f":"'1. Description generale'!A33","v":"-"},{"$f":"C18*'1. Description generale'!D38","v":0},{"$f":"'1. Description generale'!I33","v":"-"},{"$f":"'3. Budget'!T20","v":0},{"$f":"'3. Budget'!T22+('3. Budget'!T33)*1.25","v":0},{"$f":"IF(D18=\"-\",0,(IF(E18>(F18*H18),F18*H18,E18)))","v":0}]
[null,null,{"$f":"B6+(SUMIF(H8:H13,\"OUI\",I8:I13))","v":300},{"$f":"'1. Description generale'!A34","v":"-"},{"$f":"C19*'1. Description generale'!D39","v":0},{"$f":"'1. Description generale'!I34","v":"-"},{"$f":"'3. Budget'!AA20","v":0},{"$f":"'3. Budget'!AA22+('3. Budget'!AA33)*1.25","v":0},{"$f":"IF(D19=\"-\",0,(IF(E19>(F19*H19),F19*H19,E19)))","v":0}]
[null,null,null,null,null,null,null,null,{"$f":"SUM(I16:I19)","v":{"$error":"#VALUE!"}}]
["Forfait (action)"]
[]
[null,null,"Années","Plafond","Dégressivité","Total plafonné","Dépenses prévisionnelles","Dépenses éligibles","Co-financements"]
["Animation territoriale",{"$f":"IF('1. Description generale'!C10<18,\"NON\",'1. Description generale'!E120)","v":"NON"},{"$f":"'1. Description generale'!A31","v":1904},{"$f":"IF('1. Description generale'!B19=\"1ère année\",50000,25000)","v":50000},{"$f":"'1. Description generale'!I31","v":"-"},{"$f":"IF(E24=\"-\",0,D24*E24)","v":0},{"$f":"'3. Budget'!F7","v":0},{"$f":"'3. Budget'!F9+('3. Budget'!F15)*1.25","v":0},{"$f":"IF(C24=\"-\",0,IF(H24>D24,F24,E24*H24))","v":{"$error":"#VALUE!"}}]
["Plafonds\nannée 1 - 50.000€\nannées suivants - 25.000€",null,{"$f":"'1. Description generale'!A32","v":"-"},{"$f":"IF(C25=\"-\",0,25000)","v":0},{"$f":"'1. Description generale'!I32","v":"-"},{"$f":"IF(E25=\"-\",0,D25*E25)","v":0},{"$f":"'3. Budget'!M7","v":0},{"$f":"'3. Budget'!M9+('3. Budget'!M15)*1.25","v":0},0]
[null,null,{"$f":"'1. Description generale'!A33","v":"-"},{"$f":"IF(C26=\"-\",0,25000)","v":0},{"$f":"'1. Description generale'!I33","v":"-"},0,{"$f":"'3. Budget'!T7","v":0},{"$f":"'3. Budget'!T9+('3. Budget'!T15)*1.25","v":0},0]
[null,null,{"$f":"'1. Description generale'!A34","v":"-"},{"$f":"IF(C27=\"-\",0,25000)","v":0},{"$f":"'1. Description generale'!I34","v":"-"},0,{"$f":"'3. Budget'!AA7","v":0},{"$f":"'3. Budget'!AA9+('3. Budget'!AA15)*1.25","v":0},0]
["Evaluation ",{"$f":"'1. Description generale'!E122","v":"NON"},{"$f":"'1. Description generale'!A31","v":1904},{"$f":"IF(C28=\"-\",0,20000)","v":20000},{"$f":"'1. Description generale'!I31","v":"-"},0,{"$f":"'3. Budget'!F43","v":0},{"$f":"'3. Budget'!F45+('3. Budget'!F51)*1.25","v":0},{"$error":"#VALUE!"}]
["Plafonds\n20.000€",null,{"$f":"'1. Description generale'!A32","v":"-"},{"$f":"IF(C29=\"-\",0,20000)","v":0},{"$f":"'1. Description generale'!I32","v":"-"},0,{"$f":"'3. Budget'!M43","v":0},{"$f":"'3. Budget'!M45+('3. Budget'!M51)*1.25","v":0},0]
[null,null,{"$f":"'1. Description generale'!A33","v":"-"},{"$f":"IF(C30=\"-\",0,20000)","v":0},{"$f":"'1. Description generale'!I33","v":"-"},0,{"$f":"'3. Budget'!T43","v":0},{"$f":"'3. Budget'!T45+('3. Budget'!T51)*1.25","v":0},0]
[null,null,{"$f":"'1. Description generale'!A34","v":"-"},{"$f":"IF(C31=\"-\",0,20000)","v":0},{"$f":"'1. Description generale'!I34","v":"-"},0,{"$f":"'3. Budget'!AA43","v":0},{"$f":"'3. Budget'!AA45+('3. Budget'!AA51)*1.25","v":0},0]
["FORFAIT (action) - annuel",null,{"$f":"'1. Description generale'!A31","v":1904},null,null,null,null,null,{"$f":"IF(B24=\"OUI\",I24,0)+IF(B28=\"OUI\",I28,0)","v":0}]
[null,null,{"$f":"'1. Description generale'!A32","v":"-"},null,null,null,null,null,{"$f":"IF(B24=\"OUI\",I25,0)+IF(B28=\"OUI\",I29,0)","v":0}]
[null,null,{"$f":"'1. Description generale'!A33","v":"-"},null,null,null,null,null,{"$f":"IF(B24=\"OUI\",I26,0)+IF(B28=\"OUI\",I30,0)","v":0}]
[null,null,{"$f":"'1. Description generale'!A34","v":"-"},null,null,null,null,null,{"$f":"IF(B24=\"OUI\",I27,0)+IF(B28=\"OUI\",I31,0)","v":0}]
[null,null,null,null,null,null,null,null,{"$f":"SUM(I32:I35)","v":0}]
["Forfait (formations & accompagnement méthodologique) - 75%"]
[null,"Formations",null,"Ambassadeur Slime","Co-financements"]
["Années","Dépenses prévisionnelles","Dépenses éligibles"]
[{"$f":"'1. Description generale'!A31","v":1904},{"$f":"'3. Budget'!F57","v":0},{"$f":"'3. Budget'!F59+('3. Budget'!F65)*1.25","v":0},{"$f":"IF(('3. Budget'!F70*0.75)>$H$42,$H$42,'3. Budget'!F70*0.75)","v":0},{"$f":"C40*0.75+D40","v":0},null,null,"Plafond \nambassadeur Slime"]
[{"$f":"'1. Description generale'!A32","v":"-"},{"$f":"'3. Budget'!M57","v":0},{"$f":"'3. Budget'!M59+('3. Budget'!M65)*1.25","v":0},null,{"$f":"C41*0.75","v":0}]
[{"$f":"'1. Description generale'!A33","v":"-"},{"$f":"'3. Budget'!T57","v":0},{"$f":"'3. Budget'!T59+('3. Budget'!T65)*1.25","v":0},null,{"$f":"C42*0.75","v":0},null,null,2500]
[{"$f":"'1. Description generale'!A34","v":"-"},{"$f":"'3. Budget'!AA57","v":0},{"$f":"'3. Budget'!AA59+('3. Budget'!AA65)*1.25","v":0},null,0]
[null,null,null,null,{"$f":"SUM(E40:E43)","v":0}]
[]
[{"$f":"\"TOTAUX - année \" & '1. Description generale'!A31","v":"TOTAUX - année 1904"},null,null,null,null,null,null,null,{"$f":"IF('1. Description generale'!$B$18=\"Régional\",IF((I16+I32+E40)>1900000,1900000,(I16+I32+E40)),IF('1. Description generale'!$B$18=\"Départemental\",IF((I16+I32+E40)>800000,800000,(I16+I32+E40)),IF('1. Description generale'!$B$18=\"Métropole\",IF((I16+I32+E40)>800000,800000,(I16+I32+E40)),IF((I16+I32+E40)>400000,400000,(I16+I32+E40)))))","v":{"$error":"#VALUE!"}}]
[{"$f":"\"TOTAUX - année \" & '1. Description generale'!A32","v":"TOTAUX - année -"},null,null,null,null,null,null,null,{"$f":"IF('1. Description generale'!$B$18=\"Régional\",IF((I17+I33+E41)>1900000,1900000,(I17+I33+E41)),IF('1. Description generale'!$B$18=\"Départemental\",IF((I17+I33+E41)>800000,800000,(I17+I33+E41)),IF('1. Description generale'!$B$18=\"Métropole\",IF((I17+I33+E41)>800000,800000,(I17+I33+E41)),IF((I17+I33+E41)>400000,400000,(I17+I33+E41)))))","v":0}]
[{"$f":"\"TOTAUX - année \" & '1. Description generale'!A33","v":"TOTAUX - année -"},null,null,null,null,null,null,null,{"$f":"IF('1. Description generale'!$B$18=\"Régional\",IF((I18+I34+E42)>1900000,1900000,(I18+I34+E42)),IF('1. Description generale'!$B$18=\"Départemental\",IF((I18+I34+E42)>800000,800000,(I18+I34+E42)),IF('1. Description generale'!$B$18=\"Métropole\",IF((I18+I34+E42)>800000,800000,(I18+I34+E42)),IF((I18+I34+E42)>400000,400000,(I18+I34+E42)))))","v":0}]
[{"$f":"\"TOTAUX - année \" & '1. Description generale'!A34","v":"TOTAUX - année -"},null,null,null,null,null,null,null,{"$f":"IF('1. Description generale'!$B$18=\"Régional\",IF((I19+I35+E43)>1900000,1900000,(I19+I35+E43)),IF('1. Description generale'!$B$18=\"Départemental\",IF((I19+I35+E43)>800000,800000,(I19+I35+E43)),IF('1. Description generale'!$B$18=\"Métropole\",IF((I19+I35+E43)>800000,800000,(I19+I35+E43)),IF((I19+I35+E43)>400000,400000,(I19+I35+E43)))))","v":0}]
["TOTAUX (toute la période)",null,null,null,null,null,null,null,{"$f":"SUM(I46:I49)","v":{"$error":"#VALUE!"}}]

{"sheet":"7. Fiche SLIME CLER","index":7,"n_rows":45,"n_cols":85,"rows_kept":45,"cut":false,"hidden":false,"merged":[[15,3,16,3],[10,0,10,2],[31,6,31,7],[27,6,27,7],[21,0,21,3],[22,2,23,2],[17,6,17,7],[0,0,3,7],[11,0,11,3],[12,2,13,2],[12,3,13,3],[14,0,14,3],[4,0,4,1],[4,2,4,3],[4,6,4,7],[6,6,6,7]]}
["Fiche Slime"]
[]
[]
[]
["Collectivité",null,"Contact",null,null,null,"Caractéristiques"]
["Collectivité",{"$f":"'1. Description generale'!A6","v":0},"Contact",{"$f":"'1. Description generale'!A8","v":0},null,null,"Outil de politique publique ",{"$f":"'1. Description generale'!E47 & IF('1. Description generale'!E48<>\"\",\" / \" & '1. Description generale'!E48,\" \") & IF('1. Description generale'!E49<>\"\",\" / \" & '1. Description generale'!E49,\" \")","v":"  "}]
["Nom local du dispositif",{"$f":"'1. Description generale'!B6","v":0},"Mail",{"$f":"'1. Description generale'!B8","v":0},null,null,"Repérage"]
["Territoire",{"$f":"'1. Description generale'!C6","v":0},"Téléphone",{"$f":"'1. Description generale'!C8","v":0},null,null,"Critères retenus",{"$f":"'1. Description generale'!E54 & IF('1. Description generale'!E55<>\"\",\" / \" & '1. Description generale'!E55,\" \") & IF('1. Description generale'!E56<>\"\",\" / \" & '1. Description generale'!E56,\" \" ) & IF('1. Description generale'!E57<>\"\",\" / \" & '1. Description generale'!E57,\" \") & IF('1. Description generale'!E58<>\"\",\" / \" & '1. Description generale'!E58,\" \") & IF('1. Description generale'!E59<>\"\",\" / \" & '1. Description generale'!E59,\" \") & IF('1. Description generale'!E60<>\"\",\" / \" & '1. Description generale'!E60,\" \")","v":"Revenus très modestes (seuils ANAH)      "}]
["Service",{"$f":"'1. Description generale'!D8","v":0},"Adresse",{"$f":"'1. Description generale'!D10","v":0},null,null,"Mobilisation des travailleurs sociaux de la collectivité pilote",{"$f":"'1. Description generale'!E63","v":0}]
["Département",{"$f":"'1. Description generale'!D6","v":0},"Type de dossier",{"$f":"'1. Description generale'!E50","v":0},null,null,"Réseau de donneurs d'alertes externe à la collectivité",{"$f":"'1. Description generale'!E65","v":0}]
["Candidature préparée avec le soutien méthodologique d'un \"ambassadeur Slime\"",null,null,{"$f":"'1. Description generale'!E18","v":"NON"}]
["Durée du dispositif",null,null,null,null,null,"Traitement des dossiers FSL",{"$f":"'1. Description generale'!E66","v":0}]
["Date de début",{"$f":"'1. Description generale'!A10","v":"1904-01-01"},"Durée de l'action",{"$f":"'1. Description generale'!C10","v":0},null,null,"Campagne de visites systématiques sur des zones identifiées",{"$f":"'1. Description generale'!E67","v":0}]
["Date de fin",{"$f":"'1. Description generale'!B10","v":"1904-01-01"},null,null,null,null,"Utilisation des fichiers d'impayés ",{"$f":"'1. Description generale'!E68","v":0}]
["Nombre de visites",null,null,null,null,null,"Campagne de communication à destination des ménages",{"$f":"'1. Description generale'!E69","v":0}]
["Nombre de ménages sur le territoire",{"$f":"'1. Description generale'!B15","v":0},"Minimum","Objectif/an pour 1000 ménages",null,null,"Animations et sensibilisation à la précarité énergétique",{"$f":"'1. Description generale'!E70","v":0}]
["Nb de visites prévues",{"$f":"'1. Description generale'!D40","v":0},{"$f":"'1. Description generale'!C40","v":0},null,null,null,"Autres démarches d'identification, préciser",{"$f":"'1. Description generale'!E71","v":0}]
["Année 1",{"$f":"'1. Description generale'!D36","v":0},{"$f":"'1. Description generale'!D36","v":0},{"$f":"'1. Description generale'!B36","v":1},null,null,"Visites à domicile"]
["Année 2",{"$f":"'1. Description generale'!D37","v":0},{"$f":"'1. Description generale'!D37","v":0},{"$f":"'1. Description generale'!B37","v":""},null,null,"Quelle structure réalise les visites ?",{"$f":"'1. Description generale'!E73","v":0}]
["Année 3",{"$f":"'1. Description generale'!D38","v":0},{"$f":"'1. Description generale'!D38","v":0},{"$f":"'1. Description generale'!B38","v":""},null,null,"Modalités de la visite",{"$f":"'1. Description generale'!E75","v":0}]
["Année 4",{"$f":"'1. Description generale'!D39","v":0},{"$f":"'1. Description generale'!D39","v":0},{"$f":"'1. Description generale'!B39","v":""},null,null,"Profil du chargé de visite",{"$f":"'1. Description generale'!E77","v":0}]
["Elements budgétaires",null,null,null,null,null,"Besoin de formation au diagnostic sociotechnique ",{"$f":"'1. Description generale'!E80","v":0}]
["Budget total",{"$f":"'1. Description generale'!A13","v":0},"Coût par ménage",{"$f":"B23/B17","v":{"$error":"#DIV/0!"}},null,null,"Formation pour habilitation électrique",{"$f":"'1. Description generale'!E82","v":0}]
["Budget de la collectivité",{"$f":"'1. Description generale'!B13","v":0},null,{"$f":"B24/B17","v":{"$error":"#DIV/0!"}},null,null,"Nombre de visites",{"$f":"'1. Description generale'!E86","v":0}]
["Budget partenaires",{"$f":"B23-B24","v":0},"Coût équipement/ ménage",{"$f":"('4. Equipements'!D26+'4. Equipements'!N26+'4. Equipements'!D53+'4. Equipements'!N53)/B17","v":{"$error":"#DIV/0!"}},null,null,"Durée de la visite",{"$f":"'1. Description generale'!E87","v":0}]
["Par année","Budget total","Cout par ménage","Budget de la collectivité",null,null,"Qui installe les équipements d'économies d'énergie ?",{"$f":"'1. Description generale'!E88","v":0}]
["Année 1",{"$f":"'3. Budget'!F84","v":0},{"$f":"B27/B18","v":{"$error":"#DIV/0!"}},{"$f":"'3. Budget'!F74","v":0},null,null,"Nombre de chargés de visite",{"$f":"'1. Description generale'!E83","v":0}]
["Année 2 ",{"$f":"'3. Budget'!M84","v":0},{"$f":"B28/B19","v":{"$error":"#DIV/0!"}},{"$f":"'3. Budget'!M74","v":0},null,null,"Orientation"]
["Année 3",{"$f":"'3. Budget'!T84","v":0},{"$f":"B29/B20","v":{"$error":"#DIV/0!"}},{"$f":"'3. Budget'!T74","v":0},null,null,"Quand le ménage est-il orienté ?",{"$f":"'1. Description generale'!E90","v":0}]
["Année 4",{"$f":"'3. Budget'!AA84","v":0},{"$f":"B30/B21","v":{"$error":"#DIV/0!"}},{"$f":"'3. Budget'!AA74","v":0},null,null,"Quel est le principal format de remise du rapport de visite ?",{"$f":"'1. Description generale'!E91","v":0}]
[null,null,null,null,null,null,"Qui décide de l'orientation ?",{"$f":"'1. Description generale'!E92","v":0}]
[null,null,null,null,null,null,"Soutien renforcé"]
[null,null,null,null,null,null,"Modalités de soutien renforcé",{"$f":"'1. Description generale'!E96 & IF('1. Description generale'!E97<>\"\",\" / \" & '1. Description generale'!E97,\" \") & IF('1. Description generale'!E98<>\"\",\" / \" & '1. Description generale'!E98,\" \" ) & IF('1. Description generale'!E99<>\"\",\" / \" & '1. Description generale'!E99,\" \") & IF('1. Description generale'!E100<>\"\",\" / \" & '1. Description generale'!E100,\" \") & IF('1. Description generale'!E101<>\"\",\" / \" & '1. Description generale'!E101,\" \") & IF('1. Description generale'!E102<>\"\",\" / \" & '1. Description generale'!E102,\" \")","v":"      "}]
[null,null,null,null,null,null,"Services et partenaires réalisant ces accompagnements",{"$f":"'1. Description generale'!G96 & IF('1. Description generale'!G97<>\"\",\" / \" & '1. Description generale'!G97,\" \") & IF('1. Description generale'!G98<>\"\",\" / \" & '1. Description generale'!G98,\" \" ) & IF('1. Description generale'!G99<>\"\",\" / \" & '1. Description generale'!G99,\" \") & IF('1. Description generale'!G100<>\"\",\" / \" & '1. Description generale'!G100,\" \") & IF('1. Description generale'!G101<>\"\",\" / \" & '1. Description generale'!G101,\" \") & IF('1. Description generale'!G102<>\"\",\" / \" & '1. Description generale'!G102,\" \")","v":"      "}]
[null,null,null,null,null,null,"Besoin de formation à la médiation énergie bailleur-locataire",{"$f":"'1. Description generale'!E103","v":0}]
[]
[]
[]
[]
[]
[]
[]
[]
["Nom de la collectivité",null,null,"Politique / Outil","nb de ménages (par paquet)","Début","Fin","Durée","Mois 2017","Total ménages","VàD prévues","Obj. Prévu 2017",null,null,null,null,null,"Budget TOTAL ","Budget TOTAL/an",null,null,"Dépenses de la collectivité","Dépenses de la collectivité/an",null,null,null,null,null,null,null,null,null,null,null,null,null,null,null,null,null,null,null,null,null,null,null,null,null,null,null,null,null,null,null,null,null,null,"Coût total kit(€)","Coût total kit(€)/an",null,null,null,null,null,null,null,null,"contribution CLER","contribution CLER/an",null,null,null,null,null,null,"Structure réalisant les VàD","Profil chargé de VàD","Nb de chargé de VàD","Solo ou binôme","Nb de visite/ménage","Cofinanceur1","Cofinanceur2","Cofinanceur3","Cofinanceur4","Cofinanceur5"]
[{"$f":"B6","v":0},null,null,{"$f":"H6","v":"  "},null,{"$f":"B13","v":"1904-01-01"},{"$f":"B14","v":"1904-01-01"},{"$f":"D13","v":0},null,{"$f":"B16","v":0},{"$f":"B17","v":0},1,null,null,null,null,null,{"$f":"B23","v":0},{"$f":"R45/D13*12","v":{"$error":"#DIV/0!"}},null,null,{"$f":"B24","v":0},{"$f":"V45/D13*12","v":{"$error":"#DIV/0!"}},null,null,null,null,null,null,null,null,null,null,null,null,null,null,null,null,null,null,null,null,null,null,null,null,null,null,null,null,null,null,null,null,null,null,{"$f":"'4. Equipements'!D26","v":0},{"$f":"BF45/D13*12","v":{"$error":"#DIV/0!"}},null,null,null,null,null,null,null,null,{"$f":"#REF!","v":{"$error":"#REF!"}},{"$f":"#REF!/D13*12","v":{"$error":"#REF!"}},null,null,null,null,null,null,{"$f":"H19","v":0},{"$f":"H21","v":0},{"$f":"H27","v":0},{"$f":"H20","v":0},{"$f":"H24","v":0},{"$f":"'3. Budget'!A93","v":"Partenaire financier 1"},{"$f":"'3. Budget'!A94","v":"Partenaire financier 2"},{"$f":"'3. Budget'!A95","v":"Partenaire financier 3"},{"$f":"'3. Budget'!A96","v":"Partenaire financier 4"},{"$f":"'3. Budget'!A97","v":"Partenaire financier 5"}]

{"sheet":"Listes","index":8,"n_rows":14,"n_cols":31,"rows_kept":14,"cut":false,"hidden":false,"merged":[]}
["Densité de population","Age du dispositif","Outil de politique publique ","Type de dossier","Critères retenus","Lanceurs d'alerte","Quelle structure réalise les visites ?","Modalités de la visite","Quel est le profil des chargés de visite ?","Quel est le profil des chargés de visite (2ème) ?","Formation DST","Habilitation éléctrique","Nombre de visites par ménage","Installation des équipements","L'orientation se fait…","Quel est le principal format de remise du rapport de visite ? ","Qui décide de l'orientation ?","Options complémenataires","Soutien renforcé supplémentaire","Bénéficiaire","Ambassadeur Slime","Modalités de soutien renforcé","Formation bailleur-locataire","Type de territoire","Quelle structure réalise l'accompagnement renfocé ?","Coordination / Animation territoriale","Diagnostics socio-techniques et soutien renforcé","Evaluation","Formations","Accompagnement méthodologique","Avance"]
["Inférieure à 50hab/km2","1ère année","Actions de maîtrise de la demande d'énergie","Nouveau","Bénéficiaire ou demandeur du FSL énergie ou eau","OUI","Collectivité","Seul","Conseiller énergie","N/A","OUI","Réalisée ",1,"Le chargé de visite","Pendant la première visite","De visu","Le comité de suivi/orientation","NON","NON","Finance la collectivité","OUI","Accompagnement sur les usages de l'énergie/de l'eau","OUI","Régional","Collectivité","Gestion et suivi administratif","Coordination des visites à domicile","Gestion et suivi administratif ","Frais de formation au diagnostic sociotechnique","Frais d'accompagnement méthodologique par un \"Ambassadeur du Slime\"","NON"]
["Supérieure à 50hab/km2","2ème année","Dispositif d'aides curatives (hors FSL)","Renouvellement","Impayés d'eau et d'énergie récurrents","NON","Partenaire opérationnel","En binôme","Travailleur social","Conseiller énergie","NON","Non réalisée",2,"Le ménage (pendant la visite)","Lors d'une seconde visite","Par téléphone","L'animateur Slime","OUI","OUI - 10% suppl.","Finance directement un partenaire opérationnel","NON","Accompagnement social et budgétaire","NON","Départemental","Partenaire opérationnel","Actions de sensibilisation, animation et formation auprès des professionnels","Réalisation des visites à domicile","Réalisation de l'évaluation","Frais de formation à la médiation bailleur-locataire",null,"OUI - 5%"]
[null,"3ème année ou plus","Fonds local d'aide aux travaux",null,"Recours aux tarifs sociaux de l'énergie",null,"Collectivité et partenaire opérationnel","Les deux","Conseiller habitat","Travailleur social",null,null,"1 ou 2","Le ménage et le chargé de visite","Après la dernière visite","Par email","Le chargé de visite",null,"OUI - 20% suppl.","Finance directement l'achat d'équipements pour les ménages",null,"Paiement des factures d'énergie/d'eau",null,"Métropole","Collectivité et partenaire opérationnel","Communication","Recrutement des chargés de visites","Coordination et suivi opérationnel de l'évaluation","Habilitation électrique",null,"OUI - 10%"]
[null,null,"FSL (Fonds de solidarité pour le logement)",null,"Restriction / privation",null,null,null,"Emploi aidé","Conseiller habitat",null,null,"Plus",null,null,"Par courrier","Autre décideur, à préciser ci-dessous:",null,"OUI - 30% suppl.","Finance directement un autre poste",null,"Médiation, relation bailleur-locataire",null,"Infra-départemental (EPCI, commune, etc)",null,"Déplacements","Soutien renforcé (hors médiation)","Autre (préciser à droite)",null,null,"OUI - 15%"]
[null,null,"Opération programmée: OPAH, PIG …",null,"Revenus très modestes (seuils ANAH)",null,null,null,"Salarié en insertion par le travail","Emploi aidé",null,null,null,null,null,null,null,null,"OUI - 40% suppl.",null,null,"Travaux & équipements domestiques",null,null,null,"Coordination et suivi opérationnel du dispositif","Déplacements",null,null,null,"OUI - 20%"]
[null,null,"PDALHPD",null,"Sensation de froid",null,null,null,"Volontaire du Service Civique","Salarié en insertion par le travail",null,null,null,null,null,null,null,null,"OUI - 50% suppl.",null,null,"Relogement",null,null,null,"Autre (préciser à droite)","Équipements d'économies d'énergie",null,null,null,"OUI - 25%"]
[null,null,"Plan Climat Air Énergie Territorial",null,"Taux d'effort énergétique > 10%",null,null,null,"Autre","Volontaire du Service Civique",null,null,null,null,null,null,null,null,"OUI - 60% suppl.",null,null,"Autre, à préciser  à droite :",null,null,null,null,"Équipements de mesure mis à disposition des chargés de visite"]
[null,null,"Plan d'action pour l'habitat",null,"Autre critère, à préciser ci-dessous:",null,null,null,null,"Autre",null,null,null,null,null,null,null,null,"OUI - 70% suppl.",null,null,null,null,null,null,null,"Réalisation des médiations"]
[null,null,"Plan territorial de lutte contre la précarité énergétique",null,null,null,null,null,null,null,null,null,null,null,null,null,null,null,"OUI - 80% suppl.",null,null,null,null,null,null,null,"Autre (préciser à droite)"]
[null,null,"Plateforme locale de la rénovation énergétique"]
[null,null,"Politique de la ville"]
[null,null,"TEPOS"]
[null,null,"Autre"]